{"text_format":"1","workbook":"xlsx","n_sheets":22,"sheets":["Cover Page","Contents","Facility Info","Operational Data","Operational Summary","Perf. Form 1","Energy Form 1","Permit Compliance","Improvements","Public Liasion","Residue Quality ","Water","Air (periodic)","Air (CEMS)","HCl","SO2","NOx","TOC","Particulates","CO 95% 10 min","NH3","CO 0.5hourly"],"not_rendered":{"charts":8,"images":3,"macros":1,"external_links":1,"defined_names":22,"comments":0,"pivot_tables":0},"unopened":[],"bounds":{"document_bytes":16777216,"sheet_cells":100000,"rows_first":2000,"rows_last":500,"rows_between":2000,"halvings":0,"cell_chars":16384,"cell_head_chars":4096},"cells_cut":0,"cells_raw":0,"read":"whole","date_system":"1900"}

{"sheet":"Cover Page","index":0,"n_rows":53,"n_cols":14,"rows_kept":53,"cut":false,"hidden":false,"merged":[[48,2,48,3],[48,6,48,8],[52,2,52,3],[36,1,36,8],[40,2,40,8],[42,2,42,4],[44,2,44,4],[46,2,46,3],[46,6,46,8],[13,13,18,15],[34,1,34,8],[0,3,5,6],[7,1,23,8],[28,1,28,8],[30,1,30,8],[32,1,32,8]]}
[null,null,null,"Add company logo"]
[null,null,null,null,null,null,null,null,null,null,null,null,null,"Version 20.1 "]
[]
[]
[]
[]
[]
[null,"Add photo"]
[]
[]
[]
[]
[null,null,null,null,null,null,null,null,null,null,null,null,null,"Notes:"]
[null,null,null,null,null,null,null,null,null,null,null,null,null,"This template may require adjustments by individual operators to meet specific reporting requirements as defined in the site Permit(s)"]
[]
[]
[]
[]
[]
[]
[]
[]
[]
[]
[]
[]
[]
[]
[null,"Annual Performance Report 2020"]
[]
[null,"Permit EPR/BR4551IC"]
[]
[null,"Kent Enviropower Limited"]
[]
[null,"Allington Incinerator, Allington Quarry"]
[]
[null,"Kent Enviropower Limited"]
[]
[null,"Year:",2021]
[]
[null,"Address:","Laverstoke Road, Allington, Maidstone, Kent. ME16 0LE"]
[]
[null,"Tel: ","0844 736 9990"]
[]
[null,"Email: "]
[]
[null,"Prepared by:","Trevor Ellis",null,null,"Position:","Environment Manager"]
[]
[null,"Approved by:","Paul Newton",null,null,"Position:","General Manager"]
[]
[null,"Version:",1]
[]
[null,"Issue Date:","29th Jan 2021"]

{"sheet":"Contents","index":1,"n_rows":44,"n_cols":11,"rows_kept":44,"cut":false,"hidden":false,"merged":[[43,0,46,9],[36,1,36,6],[37,1,37,6],[38,1,38,6],[39,1,39,6],[40,1,40,6],[41,1,41,6],[35,1,35,6],[21,1,21,6],[22,1,22,6],[23,1,23,6],[26,1,26,6],[27,1,27,6],[28,1,28,6],[29,1,29,6],[30,1,30,6],[31,1,31,6],[34,1,34,6],[20,1,20,6],[9,1,9,6],[10,1,10,6],[11,1,11,6],[12,1,12,6],[13,1,13,6],[14,1,14,6],[15,1,15,6],[16,1,16,6],[17,1,17,6],[18,1,18,6],[19,1,19,6],[4,10,7,14],[8,1,8,6],[3,1,3,6],[4,1,4,6],[5,1,5,6],[6,1,6,6],[7,1,7,6]]}
[{"$f":"+'Cover Page'!$B$29","v":"Annual Performance Report 2020"},null,null,null,{"$f":"+'Cover Page'!$B$33","v":"Kent Enviropower Limited"}]
[]
["Contents",null,null,null,null,null,null,null,null,null,"Notes:"]
["Section","Subject",null,null,null,null,null,"Page ",null,null,"Section references and Page nos. to be inserted"]
[null,"Facility Information",null,null,null,null,null,null,null,null,"Sections and Subjects may require adjustment by individual operators to meet specific reporting requirements as defined in the sites Permit(s)"]
[null,"Operational Summary"]
[null,"Operational Data"]
[null,"Performance Form 1"]
[null,"Energy Form 1"]
[null,"Permit Compliance"]
[null,"Improvements"]
[null,"Public Liaison"]
[null,"Residue Quality - Optional"]
[null,"Emissions to Water"]
[null,"Emissions to Air (periodically monitored)"]
[null,"Emissions to Air (continuously monitored)"]
[null,"Hydrogen Chloride emissions"]
[null,"Sulphur Dioxide emissions"]
[null,"Oxides of Nitrogen emissions"]
[null,"Total Organic Carbon emissions"]
[null,"Particulate Matter emissions"]
[null,"Carbon Monoxide emissions"]
[null,"Ammonia emissions"]
[]
[]
["Version Control"]
["Section","Information",null,null,null,null,null,"Date"]
[]
[]
[]
[]
[]
[]
["Distribution"]
["Copy","Name, Role",null,null,null,null,null,"No."]
[]
[]
[]
[]
[]
[]
[]
[]
["This report is required under the Industrial Emissions Directive’s Article 55(2) requirements on reporting and public information on waste incineration plants and co-incineration plants, which require the operator to produce an annual report on the functioning and monitoring of the plant and make it available to the public. "]

{"sheet":"Facility Info","index":2,"n_rows":89,"n_cols":11,"rows_kept":89,"cut":false,"hidden":false,"merged":[[55,0,87,8],[88,0,110,8],[18,10,27,13],[35,10,44,13],[4,0,17,8],[4,10,13,13],[21,0,54,8]]}
[{"$f":"+'Cover Page'!$B$29","v":"Annual Performance Report 2020"},null,null,null,{"$f":"+'[1]Cover Page'!$B$33","v":"Kent Enviropower Limited"}]
[]
["Plant Description and Design",null,null,null,null,null,null,null,null,null,"Notes:"]
[]
["Installation Description\n\nThe Installation receives non hazardous municipal and industrial waste, recovers recyclable elements for reuse and eliminates the combustible element of the residue by burning in a fluidised bed furnace.  Energy is recovered from the process and converted to electricity in place of non-renewable fossil fuels. The combustion gases are cleaned to meet the standards required by the Directive before discharge from a tall chimney. Ashes and other solid residues are removed from the installation.\n\nThe Installation covers the site and the entire EfW plant including all EfW lines, waste reception, storage, on-site pre-treatment facilities, water, fuel and air supply systems, boiler, facilities for the treatment of exhaust gases, on-site facilities for treatment or storage of residues and waste water, stack, devices and systems for controlling combustion operations, recording and monitoring conditions.\n\nThe Installation has a design throughput of approx 580,000 tonnes per annum with an EfW capacity approx 560,000 tonnes per annum. The transfer loading station receives food waste and clean source separated recyclables which it reloads for onward transport and recovery.  There is a single waste reception followed by three independent waste treatment lines each complete with a heat recovery boiler, acid gas abatement, bag filter and a separate flue in the chimney. The heat produced from the combustion of the waste is used to generate steam in the boilers and the steam is then combined and passed to a steam turbine which generates approx 34.5 MW of electrical energy for export to the National Grid.",null,null,null,null,null,null,null,null,null,"Include summary of plant design, design capacity, no. of combustion lines, electrical and heat capacity and any other general information that describes the facility, its location and purpose "]
[]
[]
[]
[]
[]
[]
[]
[]
[]
[]
[]
[]
[]
[null,null,null,null,null,null,null,null,null,null,"Include summary of plant design, design capacity, no. of combustion lines, electrical and heat capacity and any other general information that describes the facility, its location and purpose "]
["Summary of Operational Processes and Procedures"]
[]
["Raw Materials\nWaste is delivered to the plant in road vehicles which are weighed before proceeding to the tipping\nhall. This is a fully enclosed building, maintained under slight negative pressure to ensure that no\nodours, dust or litter can escape the building. The vehicles carry either unsorted mixed municipal\nwaste, sorted waste for recycling or mixed recyclable waste and non recyclable waste and each tip\ninto the appropriate section of the tipping hall.\nThe unsorted mixed waste (black bag) is transferred by crane grab to a waste shredding line, it then\nmoves forward through a metals extraction section where ferrous metals are removed for recycling\nbefore moving to the prepared fuel bunker.\nThe facility also operates as a waste transfer site. It receives clean mixed recyclates and food wastes\ncollected in the community and loads them in bulk onto their designated transport vehicles for transport\noff site for recovery.\nA crane grab in the prepared fuel bunker both mixes the waste and charges the hoppers of the three\nincineration lines.\nHydrated lime for the flue gas cleaning process is delivered by bulk tanker and offloaded pneumatically\ninto three 125m3 silos vented through a reverse pulse jet filter.\nActivated carbon for the flue gas cleaning process is stored in dedicated silos that are pneumatically\nfilled from delivery trucks. There are three silos, one for each line, each equipped with filters to prevent\ndust emissions during filling.\nUrea, dissolved in water is stored in a fully bunded tank and is injected into the furnaces as necessary\nto control NOx emissions.\nCaustic soda for water treatment resin regeneration is delivered by bulk tanker and offloaded into a\n5.5 m3 tank with scrubber, inside the demineralisation area.\nHydrochloric acid for water treatment resin regeneration is delivered by bulk tanker and offloaded into\na 5.5 m3 tank vented through the caustic soda scrubber in a bund outside the demineralisation area.\nVarious other water treatment chemicals are delivered in appropriate containers and stored in bunded\nareas.\nGas oil for the combustion chamber burners and on-site vehicles is stored in a fully bunded 150 m3\ntank.\nSand for the fluidised bed furnaces is stored in 3 silos each of 55 cubic meters capacity.\nVarious maintenance materials (oils, greases, insulants, antifreezes, welding and fire fighting gases\netc.) are stored in the appropriate manner.\n                                                                                                                                                                                                                                                                                                                                                                                                                                                                                                                                                                                                                                                                                                                                                                                                                                                                                                                                                                                                                                                                                                                                        \n                                                                                                                                                                                                                                                                                                                                                                                                                                                                                         Combustion Process:-  The technology employed for incineration is the ROWITEC unit which uses a fluidised bed process.\nThe design has an inclined air distributor plate with a number of separate air supply chambers providing\ndifferential air flows across the bed, causing a revolving action. This technique promotes rapid and\nuniform mixing of the sand and bottom ash and ensures that heavy inert and non-combustible material\nmigrates to the sides of the bed where they can easily be removed.\nAn angled furnace wall above the fluidised bed zone restrains bed expansion under high fluidising air\nflows and so minimises particulate carry over. The elliptical patterns of air flow converge in the centre\nof the combustion area ensuring effective vertical and lateral turbulent mixing and high combustion\nefficiency and uniformity.\nThe waste is burned on a bed consisting of sand and ash that is held in suspension by an upward flow\nof combustion air that circulates the combustion mixture up to the throat of the furnace.\nThe furnace operating design is based on a thermal capacity of 53.8MW at full load and this can be\nachieved over the typical range of waste calorific values expected with municipal waste.\nThe combustion air system provides the furnace with the total air requirements for fluidisation and\ncombustion. Primary air is supplied to the bottom of the combustion chamber and fluidises the bed.\nThis air is extracted from the waste reception and storage buildings and destroys all odours in the\ncombustion chamber.\nEach furnace is equipped with two fuel oil burners for use at start-up to heat the furnace and also\nduring extreme reductions in waste fuel calorific value when the temperature of the furnace would\notherwise fall below 850 degrees Centigrade.\nCombustion control of the furnace will be achieved through a combination of furnace bed and freeboard\ntemperature control, primary air flow control, oxygen control within the flue gas and furnace load.\nRecirculated flue gas is fed to the furnace bed as a cooling medium to control the furnace bed\ntemperature and also to assist the control of NOx by influencing the combustion temperature conditions\nwithin the furnace.\nThe furnace bed is managed to remove non-combustible material (bottom ash) from the bed and\nmaintain the sand level within the optimum operating range. Bottom ashes produced in the furnace\ntogether with sand migrate down the slope of the furnace to the discharge section located at each side\nof the bed. The bottom ash and sand are both withdrawn from the discharge sections of the bed by\ntwo water-cooled discharge screw conveyors. Material passing out of the screw conveyors is\ndischarged to a vibrating screen. Undersize material is returned to the sand hopper for re-use within\nthe furnace while the oversized material is sent off site for recovery or re-use or landfill.\n"]
[]
[]
[]
[]
[]
[]
[]
[]
[]
[]
[]
[]
[]
[null,null,null,null,null,null,null,null,null,null,"Include summary of key processes and procedures such as (but not limited to); waste reception, control rooms, grate, bed and boiler, energy & heat  generation, cooling systems, residue management, emission controls, health and safety systems, maintenance"]
[]
[]
[]
[]
[]
[]
[]
[]
[]
[]
[]
[]
[]
[]
[]
[]
[]
[]
[]
["\nEnergy Recovery\nHot gases from the furnace pass through to a boiler designed to generate steam. The boiler comprises\ntwo fully water cooled radiation chambers, a single pass horizontal plain tube convective heating\nsurface, incorporating a three stage convective superheater unit and a plain tube economiser section.\nThe economiser is designed for high velocity gas flow to minimise the reformation of dioxins in the\ncritical de Novo synthesis range.\nSteam is generated at 65 bar and a final temperature of 420 degrees Centigrade.\nThe high pressure steam from all three boilers feeds into a common header which in turn will feed a\ncondensing steam turbine that will generate electricity. Steam exiting the turbine will be condensed in\nan air cooled condenser and the condensate returned to the boilers.\nGas Cleaning\nThe plant is designed to meet the requirements of the Industrial Emissions Directive as a minimum for\nreleases to air by a combination of main process design and operation and abatement equipment.\nFlue gases pass from the boiler to the gas cleaning equipment. The gas passes to an electrostatic\nprecipitator (ESP) for the separation of ash carried over from the furnace with the flue gas. Material\ncollected in the ESP will be discharged by means of rotary valves and chain conveyors and then\npneumatically fed to the ash silos or re-injected into the flue gas cleaning system.\nGases leaving the ESP enter the gas cleaning system. This comprises a circo clean reactor and bag\nfilter system. Gases entering the circo clean reactor will be at a temperature of 190 to 230 degrees C\nand will come into contact with a mixture of water, hydrated lime and activated carbon that have been\ninjected into the reactor. The reactor is designed to reduce or remove acidic pollutants such as HCl,\nSO2 and HF by the use of the hydrated lime and dioxins and furans, PCBs, PAHs, mercury vapour and\nheavy metal salts such as mercury chloride by the use of the activated carbon. The injected water enhances the reactions and cools the gas. The control system of the circo clean reactor optimises the\nuse of reactants by balancing the feed rate with the concentration of the pollutants entering the circo\nclean reactor.\nThe final stage of the gas cleaning system is the bag filter unit which separates the particulate material\nfrom the flue gas. The baghouse filter consists of compartments each of which contains a number of\ntubular filter bags. A thick porous layer of particulate builds on the bag surfaces to form a filter cake\nwhich efficiently removes ultra fine particles from the gas stream and the excess lime continues to\nreact with the acid gases.\nBag house residue is discharged from the compartments via the integrated buffer storage by a closed\npneumatic conveying system into the reaction product silos. Silos are equipped with a filter, hopper\nheating and fluidisation system to assist discharge. The residue is then discharged directly into road\nvehicles under dust free conditions for transport off site to a licensed facility.\nNitrogen oxides (NOx) abatement is achieved by the use of both flue gas recirculation (FGR) and\nselective non-catalytic reduction (SNCR). The SNCR is based on the injection of urea into the furnace\nchambers before the boilers and before the lime and carbon injection and before the gas passes to\nbag filters.\nThe cleaned gas then discharges to atmosphere via three 80-metre flues in a common stack at an\nefflux velocity in excess of 15 ms-1 at maximum throughput.\nAncillary Operations\nDemineralised water is required to compensate for boiler blowdown losses. A package\ndemineralisation plant provides this water. The ion exchange resins are regenerated using sodium\nhydroxide and hydrochloric acid and the regeneration effluent is routed through a neutralisation tank\nto the collection pit for reuse where possible.\nAsh Handling\nBottom ash, the combined boiler and ESP ash and the flue gas treatment residue (FGTR) from the\nbag filter system, are each sent for separate disposal off site by licensed contractors subject to waste\nlicensing legislation. FGTR is not mixed with any other ash at any time. The bottom ash is likely to be\nsubject to ferrous and non ferrous metals extraction by the contractors before disposal or reuse. All\noperations will be subject to waste licensing legislation and be tracked by the Environment Agency. At\nleast quarterly sampling of the bottom ash will be carried out to ensure effective burn out is being\nachieved by testing for the “loss on ignition” of the residual ash. All other solid waste residues arising\nfrom the operation of the process will be removed from site, in enclosed containers, for disposal by\nsuitable contractors.\nLiquid Effluent and Site Drainage\nUncontaminated surface water from the roads and parking area that is not reused within the process\nwill be discharged to sewer.\n"]
[]
[]
[]
[]
[]
[]
[]
[]
[]
[]
[]
[]
[]
[]
[]
[]
[]
[]
[]
[]
[]
[]
[]
[]
[]
[]
[]
[]
[]
[]
[]
[]
["Emissions Monitoring\nEmissions from the stack are continuously monitored for: particulate, carbon monoxide (CO), ammonia\n(NH3), sulphur dioxide (SO2), hydrogen chloride (HCl), oxygen (O2), nitrogen oxides (NOx) and volatile\norganic compounds (VOC). In addition periodic sampling and measurement will be carried out for\nmetals cadmium (Cd), thallium (Tl), mercury (Hg), antimony (Sb), arsenic (As), lead (Pb), chromium\n(Cr), cobalt (Co), copper (Cu), manganese (Mn), nickel (Ni), vanadium (V), dioxins and furans, dioxin\nlike PCBs, hydrogen fluoride (HF) and nitrous oxide (N2O). Periodic measurements will be carried out\nfour times in the first year and thereafter either at the same frequency or twice per year dependant on\nthe substances.\n"]

{"sheet":"Operational Data","index":3,"n_rows":52,"n_cols":11,"rows_kept":52,"cut":false,"hidden":false,"merged":[[3,1,3,2],[7,1,16,1],[19,1,22,1],[44,0,46,0],[5,10,6,10],[7,10,14,10],[27,1,29,1],[24,2,24,5],[24,6,24,7]]}
[{"$f":"+'Cover Page'!$B$29","v":"Annual Performance Report 2020"},null,null,null,{"$f":"+'Cover Page'!$B$33","v":"Kent Enviropower Limited"}]
[]
["Operational Data",null,null,null,null,null,null,null,null,null,"Notes:"]
["Plant Size",560000,null,"tonnes pa",41670,"MWth",376680,"MWe",null,null,"* - RDF to include SRF "]
["No. of combustion lines",3,null,"No. of Turbines:",null,1,null,null,null,null,"** - CHP plants only"]
[null,null,null,null,null,null,null,null,null,null,"2020 updates include;  heat in MWh, water in Litres, NCV in MJ/kg"]
["Waste types received","Unit","Q1","Q2","Q3","Q4","Year Total","%"]
["Household / Local Authority","tonnes",82138.239999999991,86012.640000000014,75221.320000000007,69253,{"$f":"SUM(C8:F8)","v":312625.2},{"$f":"IF(G8>0,G8/$G$14,\"-\")","v":0.66992450306580409},null,null,"Availability Definition: 'the availability of a line is to be calculated by the number of hours the line reported Continuously Monitored emission levels to the Regulator through the calendar year divided by the total number of hours in that year. \nThe overall plant availability is calculated as the Mean of all lines in the plant. For clarity this includes periods of Other Than Normal Operating Conditions (OTNOC) and abnormal operation.'  \n\nRationale: The primary function of an Energy from Waste facility is the disposal of waste. It follows therefore that the availability of a plant is determined by the period of time a facility spends undertaking this activity."]
["Commercial & Industrial ",null,53085.179999999993,37040.679999999993,17712.679999999997,8881.9399999999987,{"$f":"SUM(C9:F9)","v":116720.47999999998},{"$f":"IF(G9>0,G9/$G$14,\"-\")","v":0.25012030239917354}]
["Food waste",null,1236.3800000000001,1257.1400000000001,1229.46,1293.6200000000001,5016.6000000000004,1.0750071529997943E-2]
["Recyclates waste",null,4871.6400000000003,5849.8399999999992,5341.2800000000007,5573.52,{"$f":"SUM(C11:F11)","v":21636.28},4.6364381781099522E-2]
["MSW",null,0,0,1572.3600000000001,6475.8799999999992,{"$f":"SUM(C12:F12)","v":8048.24},1.7246572517360493E-2]
["Card/Paper",null,583,590.92000000000007,652.90000000000009,783.7399999999999,2610.56,5.5941687065644919E-3]
["Total waste received",null,{"$f":"SUM(C8:C13)","v":141914.44},{"$f":"SUM(D8:D13)","v":130751.22},{"$f":"SUM(E8:E13)","v":101730},{"$f":"SUM(F8:F13)","v":92261.700000000012},{"$f":"SUM(G8:G13)","v":466657.35999999993},1]
["Rejected Waste ",null,null,null,null,null,{"$f":"SUM(C15:F15)","v":0},"-"]
["Unprocessed waste transferred out",null,6691.02,7697.9,11494.98,14147.12,40031.020000000004,8.5782467890359662E-2]
["Total waste combusted",null,131843.34,119603.84,91958.87,79199.879999999976,422605.92999999993]
[]
["Energy Usage / Export","Unit","Q1","Q2","Q3","Q4","Year Total","KWh/te"]
["Power Generated","MWh",74982,66910,45182,37086,{"$f":"SUM(C20:F20)","v":224160},{"$f":"IF(G20>0,G20*1000/$G$17,\"-\")","v":530.42322430260276}]
["Power Exported",null,58931,51491,34012,28336,{"$f":"SUM(C21:F21)","v":172770},{"$f":"IF(G21>0,G21*1000/$G$17,\"-\")","v":408.82057665400015}]
["Power Used on site",null,16114,16469,13683,11860,{"$f":"SUM(C22:F22)","v":58126},{"$f":"IF(G22>0,G22*1000/$G$17,\"-\")","v":137.54184660873076}]
["Power Imported",null,63,1050,2513,3110,6736,{"$f":"IF(G23>0,G23*1000/$G$17,\"-\")","v":15.939198960128177}]
["Parasitic Load","%",{"$f":"IF(C20>0,1-C21/(C20+C23),\"-\")","v":0.21472449863415288},{"$f":"IF(D20>0,1-D21/(D20+D23),\"-\")","v":0.24233372572101231},{"$f":"IF(E20>0,1-E21/(E20+E23),\"-\")","v":0.28688541775867493},{"$f":"IF(F20>0,1-F21/(F20+F23),\"-\")","v":0.29505423425216437},{"$f":"IF(G20>0,1-G21/(G20+G23),\"-\")","v":0.251741043586723}]
["R1 value",null,"0.55 (explanation send to EA)",null,null,null,"Design / Operational / n/a"]
[]
["Waste Disposal & Recovery","Unit","Q1","Q2","Q3","Q4","Year Total","% inputs"]
["APC Residues - produced","tonnes",10976.119999999999,11286.339999999998,8411.4599999999991,7610.08,{"$f":"SUM(C28:F28)","v":38284},{"$f":"IF(G28>0,G28/$G$14,\"-\")","v":8.2038778944791543E-2}]
["IBA - produced",null,12837.86,14467.16,11214.720000000001,8328.7400000000016,46848.48000000001,{"$f":"IF(G29>0,G29/$G$14,\"-\")","v":0.10039160209537897}]
["Metals recycling",null,3844.1000000000004,3977.4400000000005,2690.0800000000004,2119.2799999999997,{"$f":"SUM(C30:F30)","v":12630.900000000001},{"$f":"IF(G30>0,G30/$G$14,\"-\")","v":2.7066754074124115E-2}]
[]
["Raw Material Usage","Unit","Q1","Q2","Q3","Q4","Year Total","kg or Ltr /te"]
["Mains Water","ltrs",37745000,39630000,36689000,20836000,{"$f":"SUM(C33:F33)","v":134900000},{"$f":"IF(G33>0,G33/$G$14,\"-\")","v":289.07719359660376}]
["Lime / hydrated lime","kgs",794060,841700,763940,683760,3083460,{"$f":"IF(G34>0,G34/$G$14,\"-\")","v":6.6075460590614075}]
["Urea","kgs",21700,0,0,0,21700,{"$f":"IF(G35>0,G35/$G$14,\"-\")","v":4.6500927361351384E-2}]
["Activated carbon","kgs",55880,62660,54599.999999999993,28280,{"$f":"SUM(C36:F36)","v":201420},{"$f":"IF(G36>0,G36/$G$14,\"-\")","v":0.4316228935079906}]
["Caustic Soda","kgs",35899.999999999985,35900.000000000007,64170,36020,171990,{"$f":"IF(G37>0,G37/$G$14,\"-\")","v":0.3685573500865818}]
["Hydrochloric Acid","kgs",40360,47074.239130434777,61730,39210,{"$f":"SUM(C38:F38)","v":188374.23913043478},{"$f":"IF(G38>0,G38/$G$14,\"-\")","v":0.4036671341269209}]
["Sand","kgs",449560.00000000006,533260,695199.99999999988,1038599.9999999999,2716620,5.8214446676679446]
["Ammonia","kgs",920000,0,0,0,920000,1.9714678881310264]
["Salt","kgs",2000,4000,0,4000,10000,2.1428998784032895E-2]
["Fuel oil","ltrs",424950,520670,1001650,1161930,3109200,6.662704301931508]
[]
["Summary ","Line/Unit","Q1","Q2","Q3","Q4","Year Total",null,null,"Hrs in year "]
["Availability of waste combustion by line, hrs",1,1959,1933,1474,899,{"$f":"SUM(C45:F45)","v":6265}," x %",null,8760]
[null,2,2105,1657,1363,1585,6710,"x %"]
[null,3,1659,1998,1340,1115,6112,"x %"]
["Overall Availability, mean avg. of all lines, hrs",null,{"$f":"AVERAGE(C45:C47)","v":1907.6666666666667},1862.6666666666667,1392.3333333333333,1199.6666666666667,{"$f":"AVERAGE(G45:G47)","v":6362.333333333333},"x %"]
["Hours of turbine operations, hrs",1,2172.75,2043,1642,1460,7317.75,"x %"]
["Abnormal Events","qty.",0,0,1,0,1,{"$f":"IF(G50>0,\"yes\",\"no\")","v":"yes"}]
["Abnormal operation","hours",0,0,0.5,0,0.5,{"$f":"+(G51)/J45","v":5.7077625570776254E-5}]
["Permit Breaches","qty.",1,1,0,8,10,{"$f":"IF(G52>0,\"yes\",\"no\")","v":"yes"}]

{"sheet":"Operational Summary","index":4,"n_rows":31,"n_cols":11,"rows_kept":31,"cut":false,"hidden":false,"merged":[[4,0,26,8],[30,0,51,8],[4,10,13,13],[30,10,39,13]]}
[{"$f":"+'Cover Page'!$B$29","v":"Annual Performance Report 2020"},null,null,null,{"$f":"+'Cover Page'!$B$33","v":"Kent Enviropower Limited"}]
[]
["Summary of Plant Operations and Maintenance during the reporting year",null,null,null,null,null,null,null,null,null,"Notes:"]
[]
["Line 1 availability – 71.3%\nLine 2 availability – 76.4%\nLine 3 availability – 69.6%\nAverage availability – 72.4%\nSteam turbine availability – 71.3%\n\nOutages were originally planned for March, June and September in 2020, but due to Covid 19 all three outages were undertaken in the final quarter of the year – due to the delay plant reliability has deteriorated, and the outages took longer than planned on all three occasions. At the same time, Allington’s first ‘Major’ steam turbine inspection was undertaken, including the replacement of both turbine and generator rotors.\n\nCovid 19 presented a number of new challenges to the outages as well as day to day operations. The team have shown great flexibility through the year to cater for the changing requirements, despite the frequent setbacks.\n",null,null,null,null,null,null,null,null,null,"Include summary of key operational and/or maintenance activity undertaken in the year, such as any major component upgrades and/or replacements "]
[]
[]
[]
[]
[]
[]
[]
[]
[]
[]
[]
[]
[]
[]
[]
[]
[]
[]
[]
[]
[]
[]
[]
["Summary of Residue Handling for the reporting year"]
[]
["Bottom ash, the combined boiler and ESP ash and the flue gas treatment residue (FGTR) from the\nbag filter system, are each sent for separate disposal off site by licensed contractors subject to waste\nlicensing legislation. FGTR is not mixed with any other ash at any time. The bottom ash is likely to be\nsubject to ferrous and non ferrous metals extraction.\nIBA is subject to hazardous assessment twice a month and approx. 42 vehicles are sent off site every week for recovery.\nThe APC residues are tested quarterly and approx. 36 tankers are sent off site every week. Majority of this goes to landfill, and 20% for recovery.",null,null,null,null,null,null,null,null,null,"Include in here a summary of residue handling regimes and destinations "]

{"sheet":"Perf. Form 1","index":5,"n_rows":59,"n_cols":10,"rows_kept":59,"cut":false,"hidden":false,"merged":[[52,0,52,1],[54,0,54,9],[55,0,56,9],[43,0,43,9],[44,0,45,9],[48,0,48,1],[48,2,48,9],[50,0,50,1],[51,0,51,1],[41,4,41,5],[41,7,41,8],[42,0,42,3],[42,4,42,5],[42,7,42,8],[39,4,39,5],[39,7,39,8],[40,4,40,5],[40,7,40,8],[31,0,31,3],[31,7,31,8],[32,0,32,3],[32,4,32,5],[32,7,32,8],[33,0,33,3],[33,4,33,5],[33,7,33,8],[23,0,23,3],[23,4,23,5],[23,6,23,7],[23,8,23,9],[25,0,25,9],[26,0,28,9],[21,0,21,1],[21,2,21,3],[21,4,21,5],[21,6,21,7],[21,8,21,9],[22,0,22,3],[22,4,22,5],[22,6,22,7],[22,8,22,9],[19,0,19,1],[19,2,19,3],[19,4,19,5],[19,6,19,7],[19,8,19,9],[20,0,20,1],[20,2,20,3],[20,4,20,5],[20,6,20,7],[20,8,20,9],[17,0,17,1],[17,2,17,3],[17,4,17,5],[17,6,17,7],[17,8,17,9],[18,0,18,1],[18,2,18,3],[18,4,18,5],[18,6,18,7],[18,8,18,9],[15,0,15,1],[15,2,15,3],[15,4,15,5],[15,6,15,7],[15,8,15,9],[16,0,16,9],[13,0,13,1],[13,2,13,3],[13,4,13,5],[13,6,13,7],[13,8,13,9],[14,0,14,3],[14,4,14,5],[14,6,14,7],[14,8,14,9],[11,0,11,1],[11,2,11,3],[11,4,11,5],[11,6,11,7],[11,8,11,9],[12,0,12,1],[12,2,12,3],[12,4,12,5],[12,6,12,7],[12,8,12,9],[9,0,9,9],[10,0,10,1],[10,2,10,3],[10,4,10,5],[10,6,10,7],[10,8,10,9],[2,0,2,4],[2,6,2,8],[3,1,3,4],[5,3,5,4],[5,6,5,7],[8,0,8,1],[8,2,8,3],[8,4,8,5],[8,6,8,7],[8,8,8,9],[34,7,34,8],[35,7,35,8],[36,7,36,8],[37,7,37,8],[38,7,38,8],[34,0,34,1],[36,0,36,1],[37,0,37,1],[38,0,38,1],[34,4,34,5],[35,4,35,5],[36,4,36,5],[37,4,37,5],[38,4,38,5]]}
[{"$f":"+'Cover Page'!C39","v":2021}," Annual Reporting Performance Form 1"]
[]
[{"$f":"+'Cover Page'!B31","v":"Permit EPR/BR4551IC"},null,null,null,null,"Operator: ",{"$f":"+'Cover Page'!B37:I37","v":0}]
["Facility:",{"$f":"+'Cover Page'!B33:I33","v":"Kent Enviropower Limited"},null,null,null,"Form:","Performance 1"]
[]
["Reporting  Period from: ",null,null,"2020-01-01",null,"to:","2020-12-31"]
[]
[{"$f":"+A1","v":2021},"Annual Reporting of Waste Disposal and Recovery"]
["Waste Description",null,"Disposal Route(s)",null,"Disposal Tonnes",null,"Recovery Tonnes",null,"% / tonne of waste incinerated"]
["1) Hazardous Wastes"]
["APC Residues",null,"Landfill",null,26710.06,null,null,null,{"$f":"IF((E11+G11)>0,(E11+G11)/'Operational Data'!$G$17, \"-\")","v":6.3203230489453865E-2}]
["APC Residues",null,"Recycling",null,null,null,11573.94,null,{"$f":"IF((E12+G12)>0,(E12+G12)/'Operational Data'!$G$17, \"-\")","v":2.7387074289279383E-2}]
[null,null,null,null,null,null,null,null,{"$f":"IF((E13+G13)>0,(E13+G13)/'Operational Data'!$G$17, \"-\")","v":"-"}]
[null,null,null,null,null,null,null,null,{"$f":"IF((E14+G14)>0,(E14+G14)/'Operational Data'!$G$17, \"-\")","v":"-"}]
["Total Hazardous Waste",null,null,null,{"$f":"SUM(E11:F14)","v":26710.06},null,{"$f":"SUM(G11:H14)","v":11573.94},null,{"$f":"IF((E15+G15)>0,(E15+G15)/'Operational Data'!$G$17, \"-\")","v":9.0590304778733241E-2}]
[]
["2) Non-Hazardous Wastes"]
["IBA",null,"Recycling",null,null,null,46848.480000000003,null,{"$f":"IF((E18+G18)>0,(E18+G18)/'Operational Data'!$G$17, \"-\")","v":0.11085618225943969}]
["Ferrous Metal",null,"Recycling",null,null,null,12630.9,null,{"$f":"IF((E19+G19)>0,(E19+G19)/'Operational Data'!$G$17, \"-\")","v":2.9888127693806856E-2}]
["Process Water",null,null,null,null,null,null,null,{"$f":"IF((E20+G20)>0,(E20+G20)/'Operational Data'!$G$17, \"-\")","v":"-"}]
[null,null,null,null,null,null,null,null,{"$f":"IF((E21+G21)>0,(E21+G21)/'Operational Data'!$G$17, \"-\")","v":"-"}]
[null,null,null,null,null,null,null,null,{"$f":"IF((E22+G22)>0,(E22+G22)/'Operational Data'!$G$17, \"-\")","v":"-"}]
["Total Non-Hazardous Waste",null,null,null,{"$f":"SUM(E18:F22)","v":0},null,{"$f":"SUM(G18:H22)","v":59479.380000000005},null,{"$f":"IF((E23+G23)>0,(E23+G23)/'Operational Data'!$G$17, \"-\")","v":0.14074430995324655}]
["TOTAL WASTE",null,null,null,{"$f":"+E23+E15","v":26710.06},null,{"$f":"+G23+G15","v":71053.320000000007},null,{"$f":"IF((E24+G24)>0,(E24+G24)/'Operational Data'!$G$17, \"-\")","v":0.23133461473197978}]
[]
["Operator’s comments :"]
[]
[]
[]
[]
[{"$f":"+A1","v":2021},"Annual Reporting of Water and Other Raw Material Usage"]
["Raw Material",null,null,null,"Usage",null,"Unit","Specific Usage",null,"Unit"]
["Mains Water",null,null,null,{"$f":"+'Operational Data'!G33","v":134900000},null,"m3",{"$f":"IF(E33>0,E33/'Operational Data'!$G$17,\"-\")","v":319.2099079158686},null,"m3/te"]
["Total Water",null,null,null,134900000,null,"m3",{"$f":"IF(E34>0,E34/'Operational Data'!$G$17,\"-\")","v":319.2099079158686},null,"m3/te"]
["Lime / hydrated lime",null,null,null,{"$f":"+'Operational Data'!G34","v":3083460},null,"kg",{"$f":"IF(E35>0,E35/'Operational Data'!$G$17,\"-\")","v":7.2963008351539234},null,"kg/te"]
["Urea",null,null,null,{"$f":"+'Operational Data'!G35","v":21700},null,"kg",{"$f":"IF(E36>0,E36/'Operational Data'!$G$17,\"-\")","v":5.1348072659557813E-2},null,"kg/te"]
["Activated carbon",null,null,null,{"$f":"+'Operational Data'!G36","v":201420},null,"kg",{"$f":"IF(E37>0,E37/'Operational Data'!$G$17,\"-\")","v":0.47661423018839333},null,"kg/te"]
["Caustic Soda",null,null,null,{"$f":"+'Operational Data'!G37","v":171990},null,"kg",{"$f":"IF(E38>0,E38/'Operational Data'!$G$17,\"-\")","v":0.40697488556301142},null,"kg/te"]
["Hydrochloric Acid",null,null,null,{"$f":"+'Operational Data'!G38","v":188374.23913043478},null,"kg",{"$f":"IF(E39>0,E39/'Operational Data'!$G$17,\"-\")","v":0.44574442940361675},null,"kg/te"]
["Sand",null,null,null,{"$f":"+'Operational Data'!G39","v":2716620},null,"kg",{"$f":"IF(E40>0,E40/'Operational Data'!$G$17,\"-\")","v":6.4282581174381539},null,"kg/te"]
["Ammonia",null,null,null,{"$f":"+'Operational Data'!G40","v":920000},null,"kg",{"$f":"IF(E41>0,E41/'Operational Data'!$G$17,\"-\")","v":2.1769689791148936},null,"kg/te"]
["Salt",null,null,null,{"$f":"+'Operational Data'!G41","v":10000},null,"kg",{"$f":"IF(E42>0,E42/'Operational Data'!$G$17,\"-\")","v":2.3662706294727102E-2},null,"kg/te"]
[]
["Operator’s comments :"]
[]
[]
[]
[{"$f":"+A31","v":2021},"Annual Reporting of other performance indicators "]
["Parameter",null,"Results by Line"]
[null,null,"A1","A2","A3","A4","A5",null,"Turbine 1","Turbine 2"]
["Operating hours for the year, hours",null,6265,6710,6112]
["Number of periods of abnormal operation, qty.",null,1,0,0]
["Cumulative hours of abnormal operation for this year, hours",null,0.5,0,0]
[]
["Operator’s comments :"]
[]
[]
[]
["Signed: ",null,null,null,null,null,"Date:","29th January 2021"]

{"sheet":"Energy Form 1","index":6,"n_rows":25,"n_cols":8,"rows_kept":25,"cut":false,"hidden":false,"merged":[[13,0,13,2],[13,3,13,4],[13,6,13,8],[15,0,15,8],[16,0,20,8],[11,0,11,2],[11,3,11,4],[11,6,11,8],[12,0,12,2],[12,3,12,4],[12,6,12,8],[9,0,9,2],[9,3,9,4],[9,6,9,8],[10,0,10,2],[10,3,10,4],[10,6,10,8],[2,6,2,8],[4,1,4,4],[6,3,6,4],[6,6,6,7],[8,0,8,2],[8,3,8,4],[8,6,8,8]]}
[{"$f":"+'Cover Page'!C39","v":2021}," Annual Reporting of Energy Usage/Export"]
[]
[{"$f":"+'Cover Page'!B31","v":"Permit EPR/BR4551IC"},null,null,null,null,"Operator: ",{"$f":"+'Cover Page'!B37:I37","v":0}]
[]
["Facility:",{"$f":"+'Cover Page'!B33:I33","v":"Kent Enviropower Limited"},null,null,null,"Form:","Energy 1"]
[]
["Reporting  Period from: ",null,null,{"$f":"+'Perf. Form 1'!D6:E6","v":"2020-01-01"},null,"to:",{"$f":"+'Perf. Form 1'!G6:H6","v":"2020-12-31"}]
[]
["Energy Source",null,null,"Energy Usage",null,"Unit","Specific Usage (KWh/tonne incinerated"]
["Electricity Produced",null,null,{"$f":"+'Operational Data'!G20","v":224160},null,"MWh",{"$f":"+'Operational Data'!H20","v":530.42322430260276}]
["Electricity Imported   ",null,null,{"$f":"+'Operational Data'!G23","v":6736},null,"MWh",{"$f":"+'Operational Data'!H23","v":15.939198960128177}]
["Electricity Exported",null,null,{"$f":"+'Operational Data'!G21","v":172770},null,"MWh",{"$f":"+'Operational Data'!H21","v":408.82057665400015}]
["Gas Oil",null,null,2751.6419999999998,null,"tonnes",8570.67]
["Steam/hot water exported",null,null,0,null,"GWh",0]
[]
["Operator’s comments :"]
["Gas/Fuel oil conversion from litres used to tonnes based on density 885 Kg/m3"]
[]
[]
[]
[]
[]
[]
[]
["Signed: ",null,null,null,null,null,"Date:","29th January 2021"]

{"sheet":"Permit Compliance","index":7,"n_rows":85,"n_cols":12,"rows_kept":85,"cut":false,"hidden":false,"merged":[[18,0,18,10],[33,1,33,3],[33,4,33,6],[33,7,33,9],[22,1,22,3],[22,4,22,6],[24,1,24,3],[24,4,24,6],[24,7,24,9],[25,1,25,3],[22,7,22,9],[21,1,21,3],[21,4,21,6],[21,7,21,9],[32,0,32,10],[25,4,25,6],[25,7,25,9],[19,1,19,3],[19,4,19,6],[19,7,19,9],[20,1,20,3],[20,4,20,6],[20,7,20,9],[23,1,23,3],[23,4,23,6],[23,7,23,9],[16,2,16,4],[16,5,16,8],[15,2,15,4],[15,5,15,8],[16,0,16,1],[13,5,13,8],[14,0,14,1],[14,2,14,4],[14,5,14,8],[15,0,15,1],[7,0,7,1],[7,2,7,8],[8,0,8,1],[8,2,8,4],[8,5,8,8],[8,11,17,14],[84,4,84,8],[9,0,9,1],[9,2,9,4],[9,5,9,8],[10,0,10,1],[10,2,10,4],[10,5,10,8],[11,0,11,1],[11,2,11,4],[11,5,11,8],[12,0,12,1],[12,2,12,4],[12,5,12,8],[13,0,13,1],[13,2,13,4],[84,0,84,3],[27,1,27,3],[26,1,26,3],[26,4,27,6],[26,7,27,9],[30,1,30,3],[30,4,30,6],[30,7,30,9],[28,1,28,3],[28,4,28,6],[28,7,28,9],[29,1,29,3],[29,4,29,6],[29,7,29,9]]}
[{"$f":"+'Cover Page'!$B$29","v":"Annual Performance Report 2020"},null,null,null,{"$f":"+'Cover Page'!$B$33","v":"Kent Enviropower Limited"}]
[]
["Summary of Permit Compliance"]
[]
["Compliance with permit limits for continuously monitored pollutants"]
[]
["The plant met its emission limits as shown in the table below:"]
["Substance",null,"Percentage time compliant during operation",null,null,null,null,null,null,null,null,"Notes:"]
[null,null,"Half-hourly limit",null,null,"Daily limit",null,null,null,null,null,"Report to 2 decimal places, i.e. xx.xx%\n\nPlease provide a brief summary of each notification or non-compliance in the table (rather than just referring to notifications that were sent to the Regulator).  \n\n"]
["Particulates",null,0.99984405673483301,null,null,1]
["Oxides of nitrogen",null,0.99990000000000001,null,null,1]
["Sulphur dioxide",null,1,null,null,1]
["Carbon monoxide",null,"100% \n95% of 10-min averages",null,null,1]
["Total organic carbon",null,1,null,null,1]
["Hydrogen chloride",null,1,null,null,1]
["Hydrogen fluoride",null,1,null,null,1]
[null,null,1,null,null,1]
[]
["Summary of any notifications or non-compliances under the permit"]
["Date","Summary of notification or non-compliance [including Line/Reference]",null,null,"Reason ",null,null,"Measures taken to prevent reoccurrence"]
["2020-01-15","071 Schedule 1 Line 1 Dust exceedance ",null,null,"Shutdown conditions not achieved & Recirculation damper open. (Recirculation damper being open can allow the circoclean reactor cloud to draught directly through the stack)",null,null,"Relevant procedures reviewed and updated and all relevant personnel trained"]
["2020-06-12","072 Schedule 1 Line 1 NOx exceedance",null,null,"The computer link between the CEMVIEW (emissions monitoring computer) and the DCS (Distributed Control System) was lost and when NOx increased the abatement system (monitored by the DCS) was unable to respond.",null,null,"Modify the CEMVIEW to DCS link to prevent failure.\nModify DCS Emissions Screen to visually indicate when the CEMview data link is lost.\n"]
["2020-09-28","018 L1 NOx abnormal operation",null,null,"Valve blocked that reduced water flow",null,null,"The valve was cleared and flow resumed ending the abnormal operation."]
["2020-10-07","073 Schedule 1 Line 1 Dust exceedance",null,null,"Recirculation damper open. (Recirculation damper being open can allow the circoclean reactor cloud to draught directly through the stack)",null,null,"Review Start-up to ensure the possible collapsed Circoclean cloud is slowly removed with the fans\nCircoclean reactor – Review the Injection of water around a couple of 2-4 m3/hr"]
["2020-10-13","074 Schedule 1 L2 Furnace pressure relief valve",null,null,"Highly volatile waste caused rapid expansion of pressure",null,null,"Trials to see if Single Sided feeding promotes overpressures on lines\n"]
["2020-10-17","075 Schedule 1 Line 1 Dust exceedance",null,null,"Circoclean cloud dropped into the U-bend when ID fan was lost, which caused the draught towards the stack when the Recirculation damper opened",null,null,"Review the logic of the recirculation damper vs ID fan (consider increasing 20% setting for start-up)\nFinalise with the installation of the new water injection system"]
["2020-10-22","076 Schedule 1 Line 1 Dust exceedance",null,null,"Bag failures due to high level in residue hopper 2",null,null,"Filter bags were damaged due to high level in residue hopper 2. Damaged bags to be changed and hopper to be empty.\nReview the current alarm for a high level in the residue hoppers"]
["2020-10-23","077 Schedule 1 Line 1 Dust exceedance"]
["2020-10-28","078 Schedule 1 L2 Furnace pressure relief valve",null,null,"Highly volatile waste caused rapid expansion of pressure\n",null,null,"Trials to see if Single Sided feeding promotes overpressures on lines\n"]
["2020-11-16","079 Schedule 1 Line 3 Dust exceedance",null,null,"Recirculation damper open. (Recirculation damper being open can allow the circoclean reactor cloud to draught directly through the stack)",null,null,"Review Start-up to ensure the possible collapsed Circoclean cloud is slowly removed with the fans"]
["2020-12-20","080 Schedule 1 Line 2 Dust exceedance",null,null,"Recirculation damper open. (Recirculation damper being open can allow the circoclean reactor cloud to draught directly through the stack)",null,null,"Review Start-up to ensure the possible collapsed Circoclean cloud is slowly removed with the fans"]
[]
["Summary of any complaints received and actions to taken to resolve them."]
["Date","Summary of complaint [including Line/Reference]",null,null,"Reason *",null,null,"Measures taken to prevent reoccurrence"]
["2020-01-07","Traffic queue",null,null,"Substantiated",null,"Operator","** see below"]
["2020-01-10","Litter",null,null,"Not Substantiated",null,"Operator","N/A"]
["2020-01-23","Odour",null,null,"Not Substantiated",null,"Operator","N/A"]
["2020-03-05","Queues",null,null,"Substantiated",null,"Operator","** see below"]
["2020-05-07","Queues",null,null,"Substantiated",null,"Operator","** see below"]
["2020-05-07","RTA",null,null,"Substantiated",null,"Operator","** see below"]
["2020-06-02","Odour",null,null,"Substantiated",null,"Operator","** see below"]
["2020-06-04","Odour",null,null,"Substantiated",null,"Operator","** see below"]
["2020-06-08","Odour",null,null,"Substantiated",null,"Operator","** see below"]
["2020-06-08","Odour",null,null,"Substantiated",null,"Operator","** see below"]
["2020-06-18","Queues and Odour",null,null,"Substantiated",null,"Operator","** see below"]
["2020-06-23","Queues",null,null,"Substantiated",null,"Operator","** see below"]
["2020-07-10","Odour",null,null,"Substantiated",null,"Operator","** see below"]
["2020-07-10","Odour",null,null,"Substantiated",null,"Operator","** see below"]
["2020-07-11","Odour",null,null,"Substantiated",null,"Operator","** see below"]
["2020-07-13","Odour",null,null,"Substantiated",null,"Operator","** see below"]
["2020-07-13","Odour",null,null,"Substantiated",null,"Operator","** see below"]
["2020-07-14","Odour",null,null,"Substantiated",null,"Operator","** see below"]
["2020-07-20","Odour",null,null,"Substantiated",null,"Operator","** see below"]
["2020-07-23","Flies",null,null,"Not Substantiated",null,"Operator","N/A"]
["2020-08-03T13:41:46","Odour",null,null,"Substantiated",null,"Operator","** see below"]
["2020-08-03T14:05:48","Odour",null,null,"Substantiated",null,"Operator","** see below"]
["2020-08-13T14:52:19","Odour and Flies",null,null,"Not Substantiated",null,"Operator","N/A"]
["2020-08-13T15:15:11","Odour and Flies",null,null,"Not Substantiated",null,"Operator","N/A"]
["2020-08-29T17:44:51","Odour",null,null,"Substantiated",null,"Operator","** see below"]
["2020-09-10T14:40:00","Odour",null,null,"Substantiated",null,"Operator","** see below"]
["2020-09-14T08:00:00","Odour",null,null,"Substantiated",null,"Operator","** see below"]
["2020-09-15T08:30:00","Odour",null,null,"Not Substantiated",null,"Operator","N/A"]
["2020-09-21T07:00:00","Odour",null,null,"Substantiated",null,"Operator","** see below"]
["2020-09-21T09:30:00","Odour",null,null,"Substantiated",null,"Operator","** see below"]
["2020-09-21T11:01:00","Odour",null,null,"Substantiated",null,"Operator","** see below"]
["2020-09-21T13:28:00","Odour",null,null,"Substantiated",null,"Operator","** see below"]
["2020-09-25T09:58:00","Odour",null,null,"Substantiated",null,"Operator","** see below"]
["2020-09-26T08:00:00","Odour",null,null,"Substantiated",null,"Operator","** see below"]
["2020-09-26T09:00:00","Odour",null,null,"Substantiated",null,"Operator","** see below"]
["2020-09-26T10:00:00","Odour",null,null,"Substantiated",null,"Operator","** see below"]
["2020-09-26","Odour",null,null,"Substantiated",null,"Operator","** see below"]
["2020-09-26T14:50:00","Odour",null,null,"Substantiated",null,"Operator","** see below"]
["2020-09-27","Odour",null,null,"Substantiated",null,"Operator","** see below"]
["2020-09-27","Odour",null,null,"Substantiated",null,"Operator","** see below"]
["2020-09-27","Odour",null,null,"Substantiated",null,"Operator","** see below"]
["2020-09-28","Flies",null,null,"Not Substantiated",null,"Operator","N/A"]
["2020-10-07T15:24:00","Odour",null,null,"Substantiated",null,"Operator","** see below"]
["2020-10-08T15:55:00","Odour",null,null,"Substantiated",null,"Operator","** see below"]
["2020-10-11T10:45:00","Odour",null,null,"Substantiated",null,"Operator","** see below"]
["2020-10-15T15:30:00","Odour",null,null,"Substantiated",null,"Operator","** see below"]
["2020-10-16T12:00:00","Odour",null,null,"Substantiated",null,"EA","** see below"]
["2020-10-17T10:51:00","Odour",null,null,"Substantiated",null,"Operator","** see below"]
["2020-11-03T09:15:00","Odour",null,null,"Not Substantiated",null,"Operator","N/A"]
["2020-11-22T11:00:00","Noise",null,null,"Substantiated",null,"Operator","N/A"]
["** The Facility employed the services of an Olfactory consulting company who attended site on the 11th November 2020. They carried out an odour survey and produced a report detailing their findings and recommendations. The Facility is currently reviewing the report and will determine actions going forward.",null,null,null,"* including whether substantiated by the operator or the EA"]

{"sheet":"Improvements","index":8,"n_rows":39,"n_cols":5,"rows_kept":39,"cut":false,"hidden":false,"merged":[[37,0,37,9],[38,0,47,9],[4,0,4,9],[5,0,13,9],[15,0,15,9],[16,0,24,9],[26,0,26,9],[27,0,35,9]]}
[{"$f":"+'Cover Page'!$B$29","v":"Annual Performance Report 2020"},null,null,null,{"$f":"+'Cover Page'!$B$33","v":"Kent Enviropower Limited"}]
[]
["Summary of Plant Improvements"]
[]
["Summary of any efficiency improvements that have been completed within the year."]
["The Covid 19 situation has required all resource to be focused on plant operation and maintenance therefor no efficiency improvements have been completed in 2020."]
[]
[]
[]
[]
[]
[]
[]
[]
[]
["Summary of any permit improvement conditions that have been completed within the year and the resulting environmental benefits."]
["No permit improvements required in 2020"]
[]
[]
[]
[]
[]
[]
[]
[]
[]
["Summary of any changes to the plant or operating techniques which required a variation to the permit and a summary of the resulting environmental impact."]
["No permit variations required."]
[]
[]
[]
[]
[]
[]
[]
[]
[]
["Summary of any other improvements made to the plant or planned to be made and a summary of the resulting environmental benefits."]
["The facility is currently replacing its Continuous Emission Monitoring System (CEMS). This is planned to be fully operational by May 2021. The new CEMS will have full redundancy with each line having its own duty analyser and a back up if required."]

{"sheet":"Public Liasion","index":9,"n_rows":27,"n_cols":5,"rows_kept":27,"cut":false,"hidden":false,"merged":[[21,0,22,1],[21,2,22,9],[23,0,24,1],[23,2,24,9],[26,0,26,9],[15,0,16,1],[17,0,18,1],[19,0,20,1],[15,2,20,9],[14,0,14,1],[14,2,14,9],[5,0,5,1],[5,2,5,9],[13,0,13,9],[6,2,11,9],[10,0,10,1],[11,0,11,1],[7,0,7,1],[6,0,6,1],[8,0,8,1],[9,0,9,1]]}
[{"$f":"+'Cover Page'!$B$29","v":"Annual Performance Report 2020"},null,null,null,{"$f":"+'Cover Page'!$B$33","v":"Kent Enviropower Limited"}]
[]
["Details of Public & Stakeholder Liaison"]
[]
["Summary of events held during the reporting year."]
["Date",null,"Description"]
["2020-01-07",null,"The Facility has an active liaison group involving representatives from the following stakeholders:\n\n• Environment Agency \n• 10 Local Residents \n• Councillors Walker and Hammond (TMBC members) \n• Councillors Robertson, Harwood and Daley (MBC members). Cllr Daley is also a member of KCC.\n• Councillors Homewood and Bird (KCC members)\n• Maidstone Borough Council Environmental Health, Wilcock \n• Councillors Walker and Balcombe (Aylesford Parish Council)\n• Tonbridge & Malling & Maidstone Borough Council Environmental Health \n• Kent County Council Waste Management \n• Kent Enviropower\n\nThe liaison group currently meets approx every 16 weeks. Additional meetings were required  due to planning application for 4th Line and HWRC."]
["2020-02-04"]
["2020-05-26"]
["2020-06-23"]
["2020-07-21"]
["2020-11-03"]
[]
["List of events planned for next year"]
["Date",null,"Description"]
["2021-02-01",null,"Please see above"]
[]
["2021-06-01"]
[]
["2021-10-01"]
[]
[]
[]
[]
[]
[]
["If you wish to be involved in the public liaison programme, please contact \nBrian White (Chairman) - Email: drbdwhite@yahoo.co.uk"]

{"sheet":"Residue Quality ","index":10,"n_rows":30,"n_cols":6,"rows_kept":30,"cut":false,"hidden":false,"merged":[[29,0,34,6],[26,3,26,4],[28,0,28,6],[21,0,22,1],[23,0,23,1],[24,0,24,1],[25,0,25,1],[26,0,26,1],[23,3,23,4],[24,3,24,4],[23,5,23,6],[24,5,24,6],[25,5,25,6],[26,5,26,6],[25,3,25,4],[21,2,22,2],[22,3,22,4],[22,5,22,6],[21,3,21,6],[5,0,6,6],[7,0,8,6],[9,0,10,6],[14,0,15,1],[14,2,15,6],[16,0,17,1],[16,2,17,6],[12,0,12,6],[13,0,13,1],[13,2,13,6],[20,0,20,6]]}
[{"$f":"+'Cover Page'!$B$29","v":"Annual Performance Report 2020"},null,null,null,{"$f":"+'Cover Page'!$B$33","v":"Kent Enviropower Limited"}]
[]
["Residue Quality Monitoring Requirements"]
[]
["Summary of monitoring undertaken and compliance"]
["Waste Description:  Bottom Ash\nParameter to be measured :\nTOC or LOI, Metals (Cd, Tl, Hg, Pb, Cr, Cu, Mn, Ni, As, Co, V, Sb, Zn)  and  their  compounds  and  \nthe total   soluble   fraction   of   these metals, dioxins/ furans and dioxin like PCB’s. Sampling \nand analysis as    per    Agency    ash    sampling protocol.\nFrequency:\nQuarterly      (with      the exception   of   the   total soluble   fraction   which shall   be   \nsampled   and analysed  before  the  use of   a   new   disposal   or recycling route).\nHazard assessment undertaken twice a month (24 samples a year)\n"]
[]
[]
[]
[]
[]
[]
["Commentary on any specific events"]
["Date & Event",null,"Description"]
["NA"]
[]
["NA"]
[]
[]
[]
["Residue Quality Monitoring Results"]
["Parameter (unit) ",null,"Limit","Normal Operation "]
[null,null,null,"Bottom ash  ",null,"APC Residues"]
["Loss on Ignition (average %)",null,"<5%",1]
["Total Organic Carbon (average %)",null,"<3%",0.7]
["No. of Assessments Undertaken",null,"---",4]
["No. of Hazardous Results",null,"---",0]
[]
["Comments :"]
["IBA is also subject to hazard assessment which is carried out twice a month and all samples have been returned non-hazardous for all 24 samples for 2020."]

{"sheet":"Water","index":11,"n_rows":36,"n_cols":10,"rows_kept":36,"cut":false,"hidden":false,"merged":[[33,0,33,2],[33,3,33,5],[34,0,34,2],[34,3,34,5],[35,0,35,2],[35,3,35,5],[30,0,30,2],[30,3,30,5],[31,0,31,2],[31,3,31,5],[32,0,32,2],[32,3,32,5],[29,0,29,2],[29,3,29,5],[26,0,26,2],[27,0,27,2],[28,0,28,2],[23,0,23,2],[24,0,24,2],[24,3,24,5],[25,0,25,2],[21,0,21,9],[22,0,22,2],[22,3,22,5],[14,0,15,1],[14,2,15,9],[16,0,17,1],[16,2,17,9],[18,0,19,1],[18,2,19,9],[5,0,6,9],[7,0,8,9],[9,0,10,9],[12,0,12,9],[13,0,13,1],[13,2,13,9]]}
[{"$f":"+'Cover Page'!$B$29","v":"Annual Performance Report 2020"},null,null,null,{"$f":"+'Cover Page'!$B$33","v":"Kent Enviropower Limited"}]
[]
["Emissions to Water"]
[]
["Summary of monitoring undertaken and compliance"]
["Parameters for which reports shall be made, in accordance with conditions of the Consent to the Discharge of Trade Effluent issued by Southern Water, are listed below and are measured monthly. "]
[]
[]
[]
[]
[]
[]
["Commentary on any specific events"]
["Date & Event",null,"Description"]
["N/A",null,"N/A"]
[]
["N/A",null,"N/A"]
[]
["N/A",null,"N/A"]
[]
[]
["Emissions to Water / Sewer"]
["Parameter",null,null,"Monitoring Frequency",null,null,"Limit","Target","Max.","Average"]
["Arsenic",null,null,"monthly",null,null,1,1,0.04,1.5000000000000001E-2]
["COD shaken",null,null,"monthly",null,null,800,800,38,23.083333333333332]
["Chromium",null,null,"monthly",null,null,1,1,0.01,9.9999999999999985E-3]
["Copper",null,null,"monthly",null,null,1,1,0.01,9.9999999999999985E-3]
["Fluoride",null,null,"monthly",null,null,2,2,0.7,0.32083333333333336]
["Lead",null,null,"monthly",null,null,1,1,0.1,3.2500000000000001E-2]
["Molybdenum",null,null,"monthly",null,null,1,1,0.01,9.9999999999999985E-3]
["Nickel",null,null,"monthly",null,null,1,1,0.01,9.9999999999999985E-3]
["Selenium",null,null,"monthly",null,null,1,1,0.01,9.9999999999999985E-3]
["Suspended solids",null,null,"monthly",null,null,200,200,44,14.166666666666666]
["Sulphate",null,null,"monthly",null,null,500,500,108,50.750833333333333]
["Zinc",null,null,"monthly",null,null,3,3,0.8,0.16500000000000001]
["pH",null,null,"monthly",null,null,10,10,8.3000000000000007,7.2333333333333334]

{"sheet":"Air (periodic)","index":12,"n_rows":48,"n_cols":13,"rows_kept":48,"cut":false,"hidden":false,"merged":[[29,0,29,1],[34,0,34,1],[33,0,33,1],[32,0,32,1],[31,0,31,1],[30,0,30,1],[36,3,36,4],[37,3,37,4],[37,0,37,1],[36,0,36,1],[35,0,35,1],[18,3,18,4],[27,3,27,4],[42,3,42,4],[19,3,19,4],[20,3,20,4],[21,3,21,4],[22,3,22,4],[23,3,23,4],[24,3,24,4],[40,3,40,4],[25,3,25,4],[26,3,26,4],[28,3,28,4],[29,3,29,4],[30,3,30,4],[31,3,31,4],[13,3,13,4],[14,3,14,4],[15,3,15,4],[16,3,16,4],[17,3,17,4],[47,0,47,9],[19,0,19,1],[20,0,20,1],[21,0,21,1],[43,3,43,4],[44,3,44,4],[42,0,42,1],[43,0,43,1],[44,0,44,1],[45,0,45,1],[24,0,24,1],[41,3,41,4],[32,3,32,4],[33,3,33,4],[34,3,34,4],[35,3,35,4],[48,0,49,9],[25,0,25,1],[26,0,26,1],[22,0,22,1],[23,0,23,1],[46,0,46,1],[27,0,27,1],[28,0,28,1],[38,0,38,1],[39,0,39,1],[40,0,40,1],[41,0,41,1],[46,3,46,4],[38,3,38,4],[39,3,39,4],[45,3,45,4],[16,0,16,1],[17,0,17,1],[18,0,18,1],[13,0,13,1],[14,0,14,1],[15,0,15,1],[12,0,12,1],[11,3,11,4],[12,3,12,4],[9,0,10,1],[9,5,9,9],[9,3,10,4],[9,2,10,2],[5,12,8,15],[9,12,11,15],[8,0,8,9],[5,0,6,9],[11,0,11,1]]}
[{"$f":"+'Cover Page'!$B$29","v":"Annual Performance Report 2020"},null,null,null,{"$f":"+'Cover Page'!$B$33","v":"Kent Enviropower Limited"}]
[]
["Emissions to Air (periodically monitored)"]
[]
["Summary of monitoring undertaken, standards used and compliance",null,null,null,null,null,null,null,null,null,null,null,"Notes:"]
["Parameters for which reports shall be made, in accordance with conditions of the Permit, are listed\nbelow and are measured every 6 months.",null,null,null,null,null,null,null,null,null,null,null,"Template may require adjustment for any bespoke monitoring requirements of permit. "]
[]
[]
["Results of emissions to air that are periodically monitored"]
["Substance",null,"Ref. Period","Emission Limit Value",null,"Average",null,null,null,null,null,null,"User to add additional tables as necessary, depending on whether quarterly or bi-annual reporting is required for the compliance year"]
[null,null,null,null,null,"A1","A2","A3","A4","A5"]
["Total Particulate Matter",null,"1 hr","20 mg/m3",null,2,1.1399999999999999,1.6850000000000001]
["Ammonia",null,"1 hr","None set mg/m3",null,0.44,7.2000000000000008E-2,0.127]
["Cadmium & Thallium",null,"1 hr","0.05 mg/m3",null,1E-3,1.2000000000000001E-3,1.5500000000000002E-3]
["Heavy Metals",null,"1 hr","0.5 mg/m3",null,2.5999999999999999E-2,4.5499999999999999E-2,0.10249999999999999]
["Mercury",null,"1 hr","0.05 mg/m3",null,1E-3,1.2999999999999999E-3,7.0500000000000001E-4]
["Sulphur Dioxide",null,"1 hr","200 mg/m3",null,0.04,0.98499999999999999,0.1295]
["Hydrogen Chloride",null,"1 hr","30 mg/m3",null,7.3,5.45,5.3]
["Hydrogen Fluoride",null,"1 hr","1 mg/m3",null,0.04,5.6499999999999995E-2,4.3499999999999997E-2]
["Total VOCs (as Carbon)",null,"4 hrs","20 mg/m3",null,0.38,0.42,0.64500000000000002]
["Oxides of Nitrogen (as NO2)",null,"4 hrs","400 mg/m3",null,173,171.25,217]
["Carbon Monoxide",null,"4 hrs","150 mg/m3",null,4.7,3.5,3.7]
["Nitrous Oxide",null,"4 hrs","None set mg/m3",null,25.3,13.25,13.780000000000001]
["Dioxins / furans (I-TEQ)6",null,"6 hrs","0.1 µg/m3",null,9.9100000000000004E-3,7.0749999999999997E-3,2.2849999999999999E-2]
["Dioxins / furans (WHO-TEQ Humans / Mammals) 6",null,"6 hrs","None set µg/m3",null,9.3799999999999994E-3,2.5525000000000003E-2,2.0650000000000002E-2]
["Dioxins / furans (WHO-TEQ Fish) 6",null,"6 hrs","None set µg/m3",null,8.4600000000000005E-3,6.1799999999999997E-3,2.095E-2]
["Dioxins / furans (WHO-TEQ Birds) 6",null,"6 hrs","None set µg/m3",null,1.162E-2,9.045000000000001E-3,3.4549999999999997E-2]
["Dioxin-like PCBs (WHO-TEQ Humans / Mammals)6",null,"6 hrs","None set µg/m3",null,3.6999999999999999E-4,3.8850000000000001E-4,9.8999999999999999E-4]
["Dioxin-like PCBs (WHO-TEQ Fish)6",null,"6 hrs","None set µg/m3",null,1.5999999999999999E-5,1.9000000000000001E-5,4.6500000000000005E-5]
["Dioxin-like PCBs (WHO-TEQ Birds)6",null,"6 hrs","None set µg/m3",null,9.6000000000000002E-4,1.1914999999999999E-3,1.9750000000000002E-3]
["PAHs (DEFRA 16)",null,"6 hrs","None set µg/m3",null,1,0.39500000000000002,0.18099999999999999]
["Anthanthrene",null,"6 hrs","None set µg/m3",null,7.5000000000000002E-4,8.9999999999999998E-4,1.0449999999999999E-3]
["Benzo{a}anthracene",null,"6 hrs","None set µg/m3",null,2.7200000000000002E-3,1.2000000000000001E-3,1.0449999999999999E-3]
["Benzo[b]fluoranthene",null,"6 hrs","None set µg/m3",null,3.62E-3,2E-3,1.0449999999999999E-3]
["Benzo[k]fluoranthene",null,"6 hrs","None set µg/m3",null,1.2099999999999999E-3,1E-3,1.0449999999999999E-3]
["Benzo[b]naph(2,1-d}thiophene",null,"6 hrs","None set µg/m3",null,7.5000000000000002E-4,8.9999999999999998E-4,1.0449999999999999E-3]
["Benzo[c]phenanthrene",null,"6 hrs","None set µg/m3",null,5.7299999999999999E-3,1.7000000000000001E-3,1.0449999999999999E-3]
["Benzo[ghi]perylene",null,"6 hrs","None set µg/m3",null,7.5000000000000002E-4,8.9999999999999998E-4,1.0449999999999999E-3]
["Benzo[a]pyrene",null,"6 hrs","None set µg/m3",null,7.5000000000000002E-4,8.9999999999999998E-4,1.0449999999999999E-3]
["Cholanthrene",null,"6 hrs","None set µg/m3",null,7.5000000000000002E-4,8.9999999999999998E-4,1.0449999999999999E-3]
["Chrysene",null,"6 hrs","None set µg/m3",null,0.15841,6.3E-3,1.1450000000000002E-3]
["Cyclopenta(cd)pyrene",null,"6 hrs","None set µg/m3",null,7.5000000000000002E-4,5.8500000000000002E-4,1.0449999999999999E-3]
["Dibenzo[ah]anthracene",null,"6 hrs","None set µg/m3",null,8.2669999999999993E-2,8.9999999999999998E-4,1.0449999999999999E-3]
["Dibenzo[ai]pyrene",null,"6 hrs","None set µg/m3",null,7.5000000000000002E-4,8.9999999999999998E-4,1.0449999999999999E-3]
["Fluoranthene",null,"6 hrs","None set µg/m3",null,7.5000000000000002E-4,1.5349999999999999E-2,1.6675000000000002E-2]
["Indeno[1,2,3-cd]pyrene",null,"6 hrs","None set µg/m3",null,7.5000000000000002E-4,8.9999999999999998E-4,1.0449999999999999E-3]
["Naphthalene",null,"6 hrs","None set µg/m3",null,0.76744000000000001,0.35949999999999999,0.15178999999999998]
["Comments :"]

{"sheet":"Air (CEMS)","index":13,"n_rows":29,"n_cols":16,"rows_kept":29,"cut":false,"hidden":false,"merged":[[27,0,27,12],[29,0,30,12],[13,0,14,0],[5,0,6,12],[7,0,8,12],[10,0,10,12],[11,0,12,0],[11,2,12,2],[11,1,12,1],[11,3,11,4],[11,5,11,6],[11,7,11,8],[11,9,11,10],[11,11,11,12]]}
[{"$f":"+'Cover Page'!$B$29","v":"Annual Performance Report 2020"},null,null,null,null,null,null,null,{"$f":"+'Cover Page'!$B$33","v":"Kent Enviropower Limited"}]
[]
["Emissions to Air (continuously monitored)"]
[null,null,null,null,null,null,null,null,null,null,null,null,null,null,null,"Notes:"]
["Summary of monitoring undertaken, standards used and compliance",null,null,null,null,null,null,null,null,null,null,null,null,null,null,"Template may require adjustment for any bespoke monitoring requirements of permit"]
[null,null,null,null,null,null,null,null,null,null,null,null,null,null,null,"Report to 2 decimal places, i.e. xx.xx%"]
[]
[]
[]
[]
["Results of emissions to air that are continuously monitored (maximum and average values for each line)"]
["Substance","Reference Period","Emission Limit Value","A1",null,"A2",null,"A3",null,"A4",null,"A5"]
[null,null,null,"Max.","Avg.","Max.","Avg.","Max.","Avg.","Max.","Avg.","Max.","Avg."]
["Oxides of nitrogen","Daily mean","200 mg/m3 ",200,128.19999999999999,183,124.55,180,123.83]
[null,"½ hourly mean","400 mg/m3 ",446,130.11000000000001,366,125.12,286,123.68]
["Particulates","Daily mean","10 mg/m3",7.7,2.8170000000000002,7.4,1.55,9.6999999999999993,3.66]
[null,"½ hourly mean","30 mg/m3 ",188.6,2.89,37.799999999999997,1.6,198.6,3.73]
["Total Organic Carbon ","Daily mean","10 mg/m3 ",10,0.94,4.1900000000000004,0.45,5.85,0.66900000000000004]
[null,"97%ile in rolling year","10 mg/m3 ",740.21,1.1499999999999999,506.75,0.64600000000000002,214.72,0.85399999999999998]
["Hydrogen chloride ","Daily mean","10 mg/m3 ",9.9,5.27,9.5,4.6500000000000004,9.1,3.97]
[null,"½ hourly mean","60 mg/m3 ",34.200000000000003,5.18,59.3,4.5999999999999996,31.5,4]
["Sulphur dioxide","Daily mean","50 mg/m3 ",3.6,0.98,7.1,0.52200000000000002,1.9,0.29299999999999998]
[null,"½ hourly mean","200 mg/m3 ",97,1.01,59.2,0.59599999999999997,51.2,0.33200000000000002]
["Carbon monoxide ","Daily mean","50 mg/m3 ",27,6.25,35,6.03,26,5.82]
[null,"½ hourly mean *","100 mg/m3 *","N/A","N/A","N/A","N/A","N/A","N/A"]
[null,"95%ile 10-min avg *","150 mg/m3 *",3736,7.12,3648,7.4,3725,7.35]
[" Ammonia","Daily mean","10 mg/m3 ",1.61,0.65,0.51,0.21,0.96,0.59]
["* = delete or amend as appropriate"]
["Comments :"]

{"sheet":"HCl","index":14,"n_rows":79,"n_cols":17,"rows_kept":79,"cut":false,"hidden":false,"merged":[[12,16,15,18],[51,9,63,9],[66,9,78,9],[4,9,4,14],[4,1,4,3],[4,4,4,6],[48,0,51,6],[47,0,47,6],[6,9,18,9],[21,9,33,9],[36,9,48,9],[3,16,7,18],[9,16,11,18]]}
[{"$f":"+'Cover Page'!$B$29","v":"Annual Performance Report 2020"},null,null,null,{"$f":"+'Cover Page'!$B$33","v":"Kent Enviropower Limited"}]
[]
["Monitoring of Hydrogen Chloride emissions",null,null,"Whole Installation",null,null,"See  Notes in Cell Q3",null,null,{"$f":"+A3","v":"Monitoring of Hydrogen Chloride emissions"},null,null,null,"Per Combustion Line",null,null,"Notes:"]
[null,null,null,null,null,null,null,null,null,null,null,null,null,null,null,null,"User to add logic to complete Whole installation, Table A5:G18. From the data in Per Combustion Line, Table J6:O79, subject to No. of lines installed"]
["mg/Nm3","1/2 Hourly Reference Periods",null,null,"Daily Reference Periods"]
[{"$f":"+'Cover Page'!C39","v":2021},"1/2 hourly HCl ELV","Monthly 1/2 hourly mean","Highest 1/2 hourly maximum","Daily HCl ELV","Monthly daily mean","Highest daily maximum",null,null,{"$f":"+A6","v":2021},"mg/Nm3","Monthly 1/2 hourly mean","Monthly 1/2 hourly maximum","Monthly daily mean","Monthly daily maximum"]
["Jan",60,3.53,23,10,3.5,7.1,null,null,"A1","Jan",4.3,12.8,4.2,7.1]
["Feb",60,5.0999999999999996,32.1,10,5.0999999999999996,9.9,null,null,null,"Feb",6.9,32.1,7,9.9]
["Mar",60,5.56,59.3,10,5.5,9,null,null,null,"Mar",6.4,29.3,6.5,8.5,null,"Whole Installation table A5:G18:"]
["Apr",60,4.53,20.399999999999999,10,4.5,8.3000000000000007,null,null,null,"Apr",5.3,18.7,5.4,8.3000000000000007,null,"Mean: for 1/2 hourly and daily periods calculate mean of values across all operational combustion lines for the month"]
["May",60,3.96,17.5,10,4,7.7,null,null,null,"May",4.5,17.5,4.5,5.9]
["Jun",60,5.6,37.4,10,5.76,8,null,null,null,"Jun",6.8,27.6,7.2,8]
["Jul",60,6,34.200000000000003,10,6,9.5,null,null,null,"Jul",6.1,34.200000000000003,6.2,8.1999999999999993,null,"Maximum: for 1/2 hourly and daily periods use the highest value across all operational combustion lines for the month"]
["Aug",60,4.26,20.5,10,4.33,7,null,null,null,"Aug",3.8,20.5,3.9,5.6]
["Sep",60,4.5,14.6,10,4.83,7.2,null,null,null,"Sep",3.5,13.7,3.9,6]
["Oct",60,3.16,31.9,10,2.1659999999999999,6.7,null,null,null,"Oct",4,30.7,3.6,6.7]
["Nov",60,5.46,27.6,10,5.3,9.1,null,null,null,"Nov",7.1,27.6,6.6,6.7]
["Dec",60,3.23,31.5,10,3.2,7.4,null,null,null,"Dec",2.7,24.3,2.8,7.4]
[null,null,null,null,null,null,null,null,null,null,"Annual",{"$f":"AVERAGE(L7:L18)","v":5.1166666666666671},{"$f":"MAX(M7:M18)","v":34.200000000000003},{"$f":"AVERAGE(N7:N18)","v":5.15},{"$f":"MAX(O7:O18)","v":9.9}]
[]
[null,null,null,null,null,null,null,null,null,{"$f":"+A6","v":2021},"mg/Nm3","Monthly 1/2 hourly mean","Monthly 1/2 hourly maximum","Monthly daily mean","Monthly daily maximum"]
[null,null,null,null,null,null,null,null,null,"A2","Jan",3.3,23,3.3,4.7]
[null,null,null,null,null,null,null,null,null,null,"Feb",4.4000000000000004,23.3,4.4000000000000004,7.6]
[null,null,null,null,null,null,null,null,null,null,"Mar",5.0999999999999996,59.3,5.0999999999999996,7.3]
[null,null,null,null,null,null,null,null,null,null,"Apr",4.3,20.399999999999999,4.2,6.5]
[null,null,null,null,null,null,null,null,null,null,"May",4,13.1,4.0999999999999996,6.8]
[null,null,null,null,null,null,null,null,null,null,"Jun",5.6,37.4,5.7,7.3]
[null,null,null,null,null,null,null,null,null,null,"Jul",7.5,27,7.7,9.5]
[null,null,null,null,null,null,null,null,null,null,"Aug",5.5,18.899999999999999,5.6,7]
[null,null,null,null,null,null,null,null,null,null,"Sep",6.3,12.3,6.7,7.2]
[null,null,null,null,null,null,null,null,null,null,"Oct",2.9,31.9,2.9,5]
[null,null,null,null,null,null,null,null,null,null,"Nov",3.3,14.7,3.3,4.8]
[null,null,null,null,null,null,null,null,null,null,"Dec",3.6,20.3,3.4,5.0999999999999996]
[null,null,null,null,null,null,null,null,null,null,"Annual",{"$f":"AVERAGE(L22:L33)","v":4.6499999999999995},{"$f":"MAX(M22:M33)","v":59.3},{"$f":"AVERAGE(N22:N33)","v":4.7},{"$f":"MAX(O22:O33)","v":9.5}]
[]
[null,null,null,null,null,null,null,null,null,{"$f":"+A6","v":2021},"mg/Nm3","Monthly 1/2 hourly mean","Monthly 1/2 hourly maximum","Monthly daily mean","Monthly daily maximum"]
[null,null,null,null,null,null,null,null,null,"A3","Jan",3,9.1,3,4]
[null,null,null,null,null,null,null,null,null,null,"Feb",4,13.3,3.9,6.4]
[null,null,null,null,null,null,null,null,null,null,"Mar",5.2,12.9,4.9000000000000004,9]
[null,null,null,null,null,null,null,null,null,null,"Apr",4,10.3,3.9,6.2]
[null,null,null,null,null,null,null,null,null,null,"May",3.4,11.1,3.4,7.7]
[null,null,null,null,null,null,null,null,null,null,"Jun",4.4000000000000004,19.7,4.4000000000000004,7.9]
[null,null,null,null,null,null,null,null,null,null,"Jul",4.4000000000000004,18.2,4.0999999999999996,8]
[null,null,null,null,null,null,null,null,null,null,"Aug",3.5,8.6,3.5,4.7]
[null,null,null,null,null,null,null,null,null,null,"Sep",3.7,14.6,3.9,5.9]
[null,null,null,null,null,null,null,null,null,null,"Oct",2.6,4.2,0,0]
[null,null,null,null,null,null,null,null,null,null,"Nov",6,18.8,6,9.1]
["Comments :",null,null,null,null,null,null,null,null,null,"Dec",3.4,31.5,3.4,6.7]
[null,null,null,null,null,null,null,null,null,null,"Annual",{"$f":"AVERAGE(L37:L48)","v":3.9666666666666668},{"$f":"MAX(M37:M48)","v":31.5},{"$f":"AVERAGE(N37:N48)","v":3.6999999999999997},{"$f":"MAX(O37:O48)","v":9.1}]
[]
[null,null,null,null,null,null,null,null,null,{"$f":"+A6","v":2021},"mg/Nm3","Monthly 1/2 hourly mean","Monthly 1/2 hourly maximum","Monthly daily mean","Monthly daily maximum"]
[null,null,null,null,null,null,null,null,null,"A4","Jan"]
[null,null,null,null,null,null,null,null,null,null,"Feb"]
[null,null,null,null,null,null,null,null,null,null,"Mar"]
[null,null,null,null,null,null,null,null,null,null,"Apr"]
[null,null,null,null,null,null,null,null,null,null,"May"]
[null,null,null,null,null,null,null,null,null,null,"Jun"]
[null,null,null,null,null,null,null,null,null,null,"Jul"]
[null,null,null,null,null,null,null,null,null,null,"Aug"]
[null,null,null,null,null,null,null,null,null,null,"Sep"]
[null,null,null,null,null,null,null,null,null,null,"Oct"]
[null,null,null,null,null,null,null,null,null,null,"Nov"]
[null,null,null,null,null,null,null,null,null,null,"Dec"]
[null,null,null,null,null,null,null,null,null,null,"Annual",{"$f":"AVERAGE(L52:L63)","v":{"$error":"#DIV/0!"}},{"$f":"MAX(M52:M63)","v":0},{"$f":"AVERAGE(N52:N63)","v":{"$error":"#DIV/0!"}},{"$f":"MAX(O52:O63)","v":0}]
[]
[null,null,null,null,null,null,null,null,null,{"$f":"+A6","v":2021},"mg/Nm3","Monthly 1/2 hourly mean","Monthly 1/2 hourly maximum","Monthly daily mean","Monthly daily maximum"]
[null,null,null,null,null,null,null,null,null,"A5","Jan"]
[null,null,null,null,null,null,null,null,null,null,"Feb"]
[null,null,null,null,null,null,null,null,null,null,"Mar"]
[null,null,null,null,null,null,null,null,null,null,"Apr"]
[null,null,null,null,null,null,null,null,null,null,"May"]
[null,null,null,null,null,null,null,null,null,null,"Jun"]
[null,null,null,null,null,null,null,null,null,null,"Jul"]
[null,null,null,null,null,null,null,null,null,null,"Aug"]
[null,null,null,null,null,null,null,null,null,null,"Sep"]
[null,null,null,null,null,null,null,null,null,null,"Oct"]
[null,null,null,null,null,null,null,null,null,null,"Nov"]
[null,null,null,null,null,null,null,null,null,null,"Dec"]
[null,null,null,null,null,null,null,null,null,null,"Annual",{"$f":"AVERAGE(L67:L78)","v":{"$error":"#DIV/0!"}},{"$f":"MAX(M67:M78)","v":0},{"$f":"AVERAGE(N67:N78)","v":{"$error":"#DIV/0!"}},{"$f":"MAX(O67:O78)","v":0}]

{"sheet":"SO2","index":15,"n_rows":79,"n_cols":17,"rows_kept":79,"cut":false,"hidden":false,"merged":[[3,16,7,18],[9,16,11,18],[12,16,15,18],[66,9,78,9],[4,1,4,3],[4,4,4,6],[4,9,4,14],[6,9,18,9],[21,9,33,9],[36,9,48,9],[47,0,47,6],[48,0,51,6],[51,9,63,9]]}
[{"$f":"+'Cover Page'!$B$29","v":"Annual Performance Report 2020"},null,null,null,{"$f":"+'Cover Page'!$B$33","v":"Kent Enviropower Limited"}]
[]
["Monitoring of Sulphur dioxide emissions",null,null,"Whole Installation",null,null,"See  Notes in Cell Q3",null,null,{"$f":"+A3","v":"Monitoring of Sulphur dioxide emissions"},null,null,null,"Per Combustion Line",null,null,"Notes:"]
[null,null,null,null,null,null,null,null,null,null,null,null,null,null,null,null,"User to add logic to complete Whole installation, Table A5:G18. From the data in Per Combustion Line, Table J6:O79, subject to No. of lines installed"]
["mg/Nm3","1/2 Hourly Reference Periods",null,null,"Daily Reference Periods"]
[{"$f":"+'Cover Page'!C39","v":2021},"1/2 hourly SO2 ELV","Monthly 1/2 hourly mean","Highest 1/2 hourly maximum","Daily SO2 ELV","Monthly daily mean","Highest daily maximum",null,null,{"$f":"+A6","v":2021},"mg/Nm3","Monthly 1/2 hourly mean","Monthly 1/2 hourly maximum","Monthly daily mean","Monthly daily maximum"]
["Jan",200,0.66,10.3,50,0.66,2.2000000000000002,null,null,"A1","Jan",1.4,10.3,1.4,2.2000000000000002]
["Feb",200,0.73,10.3,50,0.73,2.1,null,null,null,"Feb",1.5,7.8,1.5,2.1]
["Mar",200,0.46,74.400000000000006,50,0.4,1.4,null,null,null,"Mar",0.6,74.400000000000006,0.5,1.4,null,"Whole Installation table A5:G18:"]
["Apr",200,0.2,20.6,50,0.2,2.6,null,null,null,"Apr",0.3,8.4,0.3,2.6,null,"Mean: for 1/2 hourly and daily periods calculate mean of values across all operational combustion lines for the month"]
["May",200,0.3,11.3,50,0.26,0.9,null,null,null,"May",0.3,6.5,0.3,0.7]
["Jun",200,0.26,12.4,50,0.3,1.1000000000000001,null,null,null,"Jun",0.3,9.4,0.4,0.9]
["Jul",200,0.56000000000000005,41.9,50,0.53,7.1,null,null,null,"Jul",0.4,41.9,0.4,1.1000000000000001,null,"Maximum: for 1/2 hourly and daily periods use the highest value across all operational combustion lines for the month"]
["Aug",200,0.9,18.2,50,0.9,3.2,null,null,null,"Aug",1.6,8.3000000000000007,1.7,3.2]
["Sep",200,1.03,19.899999999999999,50,0.96,3.1,null,null,null,"Sep",2.1,8,2.1,3.1]
["Oct",200,1.7,97,50,1,2.9,null,null,null,"Oct",2.4,97,2.2000000000000002,2.9]
["Nov",200,1.23,49.3,50,1.3,2.4,null,null,null,"Nov",2.1,10.3,2.2999999999999998,2.4]
["Dec",200,0.96,51.2,50,0.73,3.6,null,null,null,"Dec",1.5,20.399999999999999,1.5,3.6]
[null,null,null,null,null,null,null,null,null,null,"Annual",{"$f":"AVERAGE(L7:L18)","v":1.2083333333333333},{"$f":"MAX(M7:M18)","v":97},{"$f":"AVERAGE(N7:N18)","v":1.2166666666666668},{"$f":"MAX(O7:O18)","v":3.6}]
[]
[null,null,null,null,null,null,null,null,null,{"$f":"+A6","v":2021},"mg/Nm3","Monthly 1/2 hourly mean","Monthly 1/2 hourly maximum","Monthly daily mean","Monthly daily maximum"]
[null,null,null,null,null,null,null,null,null,"A2","Jan",0.4,8.6999999999999993,0.4,0.9]
[null,null,null,null,null,null,null,null,null,null,"Feb",0.4,9.1999999999999993,0.4,0.9]
[null,null,null,null,null,null,null,null,null,null,"Mar",0.5,35.200000000000003,0.5,1.2]
[null,null,null,null,null,null,null,null,null,null,"Apr",0.2,10.5,0.2,1]
[null,null,null,null,null,null,null,null,null,null,"May",0.4,7.8,0.4,0.9]
[null,null,null,null,null,null,null,null,null,null,"Jun",0.3,9.1999999999999993,0.3,1.1000000000000001]
[null,null,null,null,null,null,null,null,null,null,"Jul",1,14.4,1,7.1]
[null,null,null,null,null,null,null,null,null,null,"Aug",0.8,18.2,0.8,3.1]
[null,null,null,null,null,null,null,null,null,null,"Sep",0.3,9.5,0.3,0.5]
[null,null,null,null,null,null,null,null,null,null,"Oct",1.3,59.2,0.8,1.3]
[null,null,null,null,null,null,null,null,null,null,"Nov",0.8,21.7,0.8,1.6]
[null,null,null,null,null,null,null,null,null,null,"Dec",0.9,29.5,0.3,0.8]
[null,null,null,null,null,null,null,null,null,null,"Annual",{"$f":"AVERAGE(L22:L33)","v":0.60833333333333328},{"$f":"MAX(M22:M33)","v":59.2},{"$f":"AVERAGE(N22:N33)","v":0.51666666666666661},{"$f":"MAX(O22:O33)","v":7.1}]
[]
[null,null,null,null,null,null,null,null,null,{"$f":"+A6","v":2021},"mg/Nm3","Monthly 1/2 hourly mean","Monthly 1/2 hourly maximum","Monthly daily mean","Monthly daily maximum"]
[null,null,null,null,null,null,null,null,null,"A3","Jan",0.2,6.6,0.2,0.7]
[null,null,null,null,null,null,null,null,null,null,"Feb",0.3,10.3,0.3,0.6]
[null,null,null,null,null,null,null,null,null,null,"Mar",0.3,11,0.2,0.3]
[null,null,null,null,null,null,null,null,null,null,"Apr",0.1,20.6,0.1,0.4]
[null,null,null,null,null,null,null,null,null,null,"May",0.2,11.3,0.1,0.5]
[null,null,null,null,null,null,null,null,null,null,"Jun",0.2,12.4,0.2,0.6]
[null,null,null,null,null,null,null,null,null,null,"Jul",0.3,35.9,0.2,0.7]
[null,null,null,null,null,null,null,null,null,null,"Aug",0.3,12.3,0.2,0.5]
[null,null,null,null,null,null,null,null,null,null,"Sep",0.7,19.899999999999999,0.5,0.8]
[null,null,null,null,null,null,null,null,null,null,"Oct",1.4,13.3,0,0]
[null,null,null,null,null,null,null,null,null,null,"Nov",0.8,49.3,0.8,1.9]
["Comments :",null,null,null,null,null,null,null,null,null,"Dec",0.5,51.2,0.4,1.4]
[null,null,null,null,null,null,null,null,null,null,"Annual",{"$f":"AVERAGE(L37:L48)","v":0.44166666666666665},{"$f":"MAX(M37:M48)","v":51.2},{"$f":"AVERAGE(N37:N48)","v":0.26666666666666666},{"$f":"MAX(O37:O48)","v":1.9}]
[]
[null,null,null,null,null,null,null,null,null,{"$f":"+A6","v":2021},"mg/Nm3","Monthly 1/2 hourly mean","Monthly 1/2 hourly maximum","Monthly daily mean","Monthly daily maximum"]
[null,null,null,null,null,null,null,null,null,"A4","Jan"]
[null,null,null,null,null,null,null,null,null,null,"Feb"]
[null,null,null,null,null,null,null,null,null,null,"Mar"]
[null,null,null,null,null,null,null,null,null,null,"Apr"]
[null,null,null,null,null,null,null,null,null,null,"May"]
[null,null,null,null,null,null,null,null,null,null,"Jun"]
[null,null,null,null,null,null,null,null,null,null,"Jul"]
[null,null,null,null,null,null,null,null,null,null,"Aug"]
[null,null,null,null,null,null,null,null,null,null,"Sep"]
[null,null,null,null,null,null,null,null,null,null,"Oct"]
[null,null,null,null,null,null,null,null,null,null,"Nov"]
[null,null,null,null,null,null,null,null,null,null,"Dec"]
[null,null,null,null,null,null,null,null,null,null,"Annual",{"$f":"AVERAGE(L52:L63)","v":{"$error":"#DIV/0!"}},{"$f":"MAX(M52:M63)","v":0},{"$f":"AVERAGE(N52:N63)","v":{"$error":"#DIV/0!"}},{"$f":"MAX(O52:O63)","v":0}]
[]
[null,null,null,null,null,null,null,null,null,{"$f":"+A6","v":2021},"mg/Nm3","Monthly 1/2 hourly mean","Monthly 1/2 hourly maximum","Monthly daily mean","Monthly daily maximum"]
[null,null,null,null,null,null,null,null,null,"A5","Jan"]
[null,null,null,null,null,null,null,null,null,null,"Feb"]
[null,null,null,null,null,null,null,null,null,null,"Mar"]
[null,null,null,null,null,null,null,null,null,null,"Apr"]
[null,null,null,null,null,null,null,null,null,null,"May"]
[null,null,null,null,null,null,null,null,null,null,"Jun"]
[null,null,null,null,null,null,null,null,null,null,"Jul"]
[null,null,null,null,null,null,null,null,null,null,"Aug"]
[null,null,null,null,null,null,null,null,null,null,"Sep"]
[null,null,null,null,null,null,null,null,null,null,"Oct"]
[null,null,null,null,null,null,null,null,null,null,"Nov"]
[null,null,null,null,null,null,null,null,null,null,"Dec"]
[null,null,null,null,null,null,null,null,null,null,"Annual",{"$f":"AVERAGE(L67:L78)","v":{"$error":"#DIV/0!"}},{"$f":"MAX(M67:M78)","v":0},{"$f":"AVERAGE(N67:N78)","v":{"$error":"#DIV/0!"}},{"$f":"MAX(O67:O78)","v":0}]

{"sheet":"NOx","index":16,"n_rows":79,"n_cols":17,"rows_kept":79,"cut":false,"hidden":false,"merged":[[3,16,7,18],[9,16,11,18],[12,16,15,18],[66,9,78,9],[4,1,4,3],[4,4,4,6],[4,9,4,14],[6,9,18,9],[21,9,33,9],[36,9,48,9],[47,0,47,6],[48,0,51,6],[51,9,63,9]]}
[{"$f":"+'Cover Page'!$B$29","v":"Annual Performance Report 2020"},null,null,null,{"$f":"+'Cover Page'!$B$33","v":"Kent Enviropower Limited"}]
[]
["Monitoring of Oxides of Nitrogen emissions",null,null,"Whole Installation",null,null,"See  Notes in Cell Q3",null,null,{"$f":"+A3","v":"Monitoring of Oxides of Nitrogen emissions"},null,null,null,"Per Combustion Line",null,null,"Notes:"]
[null,null,null,null,null,null,null,null,null,null,null,null,null,null,null,null,"User to add logic to complete Whole installation, Table A5:G18. From the data in Per Combustion Line, Table J6:O79, subject to No. of lines installed"]
["mg/Nm3","1/2 Hourly Reference Periods",null,null,"Daily Reference Periods"]
[{"$f":"+'Cover Page'!C39","v":2021},"1/2 hourly NOx ELV","Monthly 1/2 hourly mean","Highest 1/2 hourly maximum","Daily NOx ELV","Monthly daily mean","Highest daily maximum",null,null,{"$f":"+A6","v":2021},"mg/Nm3","Monthly 1/2 hourly mean","Monthly 1/2 hourly maximum","Monthly daily mean","Monthly daily maximum"]
["Jan",400,109.33,246,200,109.66,129,null,null,"A1","Jan",110,246,110,118]
["Feb",400,109.33,343,200,109.33,127,null,null,null,"Feb",115,343,115,145]
["Mar",400,115.66,357,200,115,150,null,null,null,"Mar",120,357,118,150,null,"Whole Installation table A5:G18:"]
["Apr",400,115,294,200,115.33,134,null,null,null,"Apr",118,294,118,134,null,"Mean: for 1/2 hourly and daily periods calculate mean of values across all operational combustion lines for the month"]
["May",400,119.66,359,200,119.66,161,null,null,null,"May",124,359,124,143]
["Jun",400,129,444,200,128.66,153,null,null,null,"Jun",136,444,135,153]
["Jul",400,126.66,272,200,125.66,180,null,null,null,"Jul",131,245,130,160,null,"Maximum: for 1/2 hourly and daily periods use the highest value across all operational combustion lines for the month"]
["Aug",400,129.33000000000001,366,200,130.33000000000001,151,null,null,null,"Aug",132,300,132,147]
["Sep",400,133.33000000000001,446,200,130.66,200,null,null,null,"Sep",157,446,150,200]
["Oct",400,138,345,200,102.33,174,null,null,null,"Oct",156,335,154,174]
["Nov",400,143.66,394,200,138.33000000000001,183,null,null,null,"Nov",130,394,113,118]
["Dec",400,161,393,200,161.33000000000001,195,null,null,null,"Dec",174,393,175,195]
[null,null,null,null,null,null,null,null,null,null,"Annual",{"$f":"AVERAGE(L7:L18)","v":133.58333333333334},{"$f":"MAX(M7:M18)","v":446},{"$f":"AVERAGE(N7:N18)","v":131.16666666666666},{"$f":"MAX(O7:O18)","v":200}]
[]
[null,null,null,null,null,null,null,null,null,{"$f":"+A6","v":2021},"mg/Nm3","Monthly 1/2 hourly mean","Monthly 1/2 hourly maximum","Monthly daily mean","Monthly daily maximum"]
[null,null,null,null,null,null,null,null,null,"A2","Jan",109,147,110,128]
[null,null,null,null,null,null,null,null,null,null,"Feb",104,194,104,117]
[null,null,null,null,null,null,null,null,null,null,"Mar",108,185,108,122]
[null,null,null,null,null,null,null,null,null,null,"Apr",113,241,113,129]
[null,null,null,null,null,null,null,null,null,null,"May",122,272,123,161]
[null,null,null,null,null,null,null,null,null,null,"Jun",125,180,125,107]
[null,null,null,null,null,null,null,null,null,null,"Jul",119,272,117,140]
[null,null,null,null,null,null,null,null,null,null,"Aug",121,366,123,148]
[null,null,null,null,null,null,null,null,null,null,"Sep",119,310,117,124]
[null,null,null,null,null,null,null,null,null,null,"Oct",152,345,153,172]
[null,null,null,null,null,null,null,null,null,null,"Nov",153,331,153,185]
[null,null,null,null,null,null,null,null,null,null,"Dec",168,217,167,183]
[null,null,null,null,null,null,null,null,null,null,"Annual",{"$f":"AVERAGE(L22:L33)","v":126.08333333333333},{"$f":"MAX(M22:M33)","v":366},{"$f":"AVERAGE(N22:N33)","v":126.08333333333333},{"$f":"MAX(O22:O33)","v":185}]
[]
[null,null,null,null,null,null,null,null,null,{"$f":"+A6","v":2021},"mg/Nm3","Monthly 1/2 hourly mean","Monthly 1/2 hourly maximum","Monthly daily mean","Monthly daily maximum"]
[null,null,null,null,null,null,null,null,null,"A3","Jan",109,146,109,129]
[null,null,null,null,null,null,null,null,null,null,"Feb",109,220,109,127]
[null,null,null,null,null,null,null,null,null,null,"Mar",119,172,119,135]
[null,null,null,null,null,null,null,null,null,null,"Apr",114,165,115,129]
[null,null,null,null,null,null,null,null,null,null,"May",113,180,112,133]
[null,null,null,null,null,null,null,null,null,null,"Jun",126,181,126,150]
[null,null,null,null,null,null,null,null,null,null,"Jul",130,211,130,180]
[null,null,null,null,null,null,null,null,null,null,"Aug",135,286,136,151]
[null,null,null,null,null,null,null,null,null,null,"Sep",124,217,125,155]
[null,null,null,null,null,null,null,null,null,null,"Oct",106,124,0,0]
[null,null,null,null,null,null,null,null,null,null,"Nov",148,247,149,176]
["Comments :",null,null,null,null,null,null,null,null,null,"Dec",141,203,142,177]
[null,null,null,null,null,null,null,null,null,null,"Annual",{"$f":"AVERAGE(L37:L48)","v":122.83333333333333},{"$f":"MAX(M37:M48)","v":286},{"$f":"AVERAGE(N37:N48)","v":114.33333333333333},{"$f":"MAX(O37:O48)","v":180}]
[]
[null,null,null,null,null,null,null,null,null,{"$f":"+A6","v":2021},"mg/Nm3","Monthly 1/2 hourly mean","Monthly 1/2 hourly maximum","Monthly daily mean","Monthly daily maximum"]
[null,null,null,null,null,null,null,null,null,"A4","Jan"]
[null,null,null,null,null,null,null,null,null,null,"Feb"]
[null,null,null,null,null,null,null,null,null,null,"Mar"]
[null,null,null,null,null,null,null,null,null,null,"Apr"]
[null,null,null,null,null,null,null,null,null,null,"May"]
[null,null,null,null,null,null,null,null,null,null,"Jun"]
[null,null,null,null,null,null,null,null,null,null,"Jul"]
[null,null,null,null,null,null,null,null,null,null,"Aug"]
[null,null,null,null,null,null,null,null,null,null,"Sep"]
[null,null,null,null,null,null,null,null,null,null,"Oct"]
[null,null,null,null,null,null,null,null,null,null,"Nov"]
[null,null,null,null,null,null,null,null,null,null,"Dec"]
[null,null,null,null,null,null,null,null,null,null,"Annual",{"$f":"AVERAGE(L52:L63)","v":{"$error":"#DIV/0!"}},{"$f":"MAX(M52:M63)","v":0},{"$f":"AVERAGE(N52:N63)","v":{"$error":"#DIV/0!"}},{"$f":"MAX(O52:O63)","v":0}]
[]
[null,null,null,null,null,null,null,null,null,{"$f":"+A6","v":2021},"mg/Nm3","Monthly 1/2 hourly mean","Monthly 1/2 hourly maximum","Monthly daily mean","Monthly daily maximum"]
[null,null,null,null,null,null,null,null,null,"A5","Jan"]
[null,null,null,null,null,null,null,null,null,null,"Feb"]
[null,null,null,null,null,null,null,null,null,null,"Mar"]
[null,null,null,null,null,null,null,null,null,null,"Apr"]
[null,null,null,null,null,null,null,null,null,null,"May"]
[null,null,null,null,null,null,null,null,null,null,"Jun"]
[null,null,null,null,null,null,null,null,null,null,"Jul"]
[null,null,null,null,null,null,null,null,null,null,"Aug"]
[null,null,null,null,null,null,null,null,null,null,"Sep"]
[null,null,null,null,null,null,null,null,null,null,"Oct"]
[null,null,null,null,null,null,null,null,null,null,"Nov"]
[null,null,null,null,null,null,null,null,null,null,"Dec"]
[null,null,null,null,null,null,null,null,null,null,"Annual",{"$f":"AVERAGE(L67:L78)","v":{"$error":"#DIV/0!"}},{"$f":"MAX(M67:M78)","v":0},{"$f":"AVERAGE(N67:N78)","v":{"$error":"#DIV/0!"}},{"$f":"MAX(O67:O78)","v":0}]

{"sheet":"TOC","index":17,"n_rows":79,"n_cols":17,"rows_kept":79,"cut":false,"hidden":false,"merged":[[3,16,7,18],[9,16,11,18],[12,16,15,18],[66,9,78,9],[4,1,4,3],[4,4,4,6],[4,9,4,14],[6,9,18,9],[21,9,33,9],[36,9,48,9],[47,0,47,6],[48,0,51,6],[51,9,63,9]]}
[{"$f":"+'Cover Page'!$B$29","v":"Annual Performance Report 2020"},null,null,null,{"$f":"+'Cover Page'!$B$33","v":"Kent Enviropower Limited"}]
[]
["Monitoring of Total organic carbon emissions",null,null,"Whole Installation",null,null,"See  Notes in Cell Q3",null,null,{"$f":"+A3","v":"Monitoring of Total organic carbon emissions"},null,null,null,"Per Combustion Line",null,null,"Notes:"]
[null,null,null,null,null,null,null,null,null,null,null,null,null,null,null,null,"User to add logic to complete Whole installation, Table A5:G18. From the data in Per Combustion Line, Table J6:O79, subject to No. of lines installed"]
["mg/Nm3","1/2 Hourly Reference Periods",null,null,"Daily Reference Periods"]
[{"$f":"+'Cover Page'!C39","v":2021},"1/2 hourly TOC ELV","Monthly 1/2 hourly mean","Highest 1/2 hourly maximum","Daily TOC ELV","Monthly daily mean","Highest daily maximum",null,null,{"$f":"+A6","v":2021},"mg/Nm3","Monthly 1/2 hourly mean","Monthly 1/2 hourly maximum","Monthly daily mean","Monthly daily maximum"]
["Jan",10,0.48,30,10,0.46,2.31,null,null,"A1","Jan",0.76,3.39,0.71,2.31]
["Feb",10,0.63,29.11,10,0.61,2.16,null,null,null,"Feb",0.65,27.46,0.67,2.16]
["Mar",10,1.08,740.21,10,0.69,4.1900000000000004,null,null,null,"Mar",1.42,740.21,0.88,3.02,null,"Whole Installation table A5:G18:"]
["Apr",10,0.47,109.22,10,0.45,2.6,null,null,null,"Apr",0.51,30.39,0.52,1063,null,"Mean: for 1/2 hourly and daily periods calculate mean of values across all operational combustion lines for the month"]
["May",10,0.63,46.3,10,0.55000000000000004,1.49,null,null,null,"May",0.67,24.14,0.65,1.49]
["Jun",10,0.7,111.7,10,0.72,3.59,null,null,null,"Jun",1.32,111.7,1.39,3.57]
["Jul",10,0.82,211.31,10,0.52,3.43,null,null,null,"Jul",0.96,59.37,0.9,2.42,null,"Maximum: for 1/2 hourly and daily periods use the highest value across all operational combustion lines for the month"]
["Aug",10,0.96,60.18,10,0.74,2.76,null,null,null,"Aug",0.94,60.18,0.92,2.76]
["Sep",10,1.1200000000000001,134.13,10,0.87,2.92,null,null,null,"Sep",1.2,37.79,1.34,2.92]
["Oct",10,4.0999999999999996,506.75,10,1.46,10,null,null,null,"Oct",4.1900000000000004,273.05,2.96,10]
["Nov",10,1.53,58.81,10,1.1599999999999999,2.54,null,null,null,"Nov",2.7,53.04,1.58,1.72]
["Dec",10,0.88,214.72,10,0.66,5.82,null,null,null,"Dec",0.96,12.43,0.92,2.35]
[null,null,null,null,null,null,null,null,null,null,"Annual",{"$f":"AVERAGE(L7:L18)","v":1.3566666666666667},{"$f":"MAX(M7:M18)","v":740.21},{"$f":"AVERAGE(N7:N18)","v":1.1199999999999999},{"$f":"MAX(O7:O18)","v":1063}]
[]
[null,null,null,null,null,null,null,null,null,{"$f":"+A6","v":2021},"mg/Nm3","Monthly 1/2 hourly mean","Monthly 1/2 hourly maximum","Monthly daily mean","Monthly daily maximum"]
[null,null,null,null,null,null,null,null,null,"A2","Jan",0.19,15.52,0.18,0.64]
[null,null,null,null,null,null,null,null,null,null,"Feb",0.31,29.11,0.28999999999999998,0.76]
[null,null,null,null,null,null,null,null,null,null,"Mar",0.41,153.94999999999999,0.43,4.1900000000000004]
[null,null,null,null,null,null,null,null,null,null,"Apr",0.4,36.340000000000003,0.35,1.17]
[null,null,null,null,null,null,null,null,null,null,"May",0.59,17.03,0.54,1.41]
[null,null,null,null,null,null,null,null,null,null,"Jun",0.28999999999999998,26.45,0.26,1.4]
[null,null,null,null,null,null,null,null,null,null,"Jul",0.47,50.49,0.39,3.43]
[null,null,null,null,null,null,null,null,null,null,"Aug",1.1499999999999999,46.82,0.91,2.3199999999999998]
[null,null,null,null,null,null,null,null,null,null,"Sep",0.5,10.99,0.5,1.1100000000000001]
[null,null,null,null,null,null,null,null,null,null,"Oct",3.89,506.75,1.43,3.08]
[null,null,null,null,null,null,null,null,null,null,"Nov",0.8,58.81,0.8,2.38]
[null,null,null,null,null,null,null,null,null,null,"Dec",0.62,152.55000000000001,0.25,1.25]
[null,null,null,null,null,null,null,null,null,null,"Annual",{"$f":"AVERAGE(L22:L33)","v":0.80166666666666675},{"$f":"MAX(M22:M33)","v":506.75},{"$f":"AVERAGE(N22:N33)","v":0.52749999999999997},{"$f":"MAX(O22:O33)","v":4.1900000000000004}]
[]
[null,null,null,null,null,null,null,null,null,{"$f":"+A6","v":2021},"mg/Nm3","Monthly 1/2 hourly mean","Monthly 1/2 hourly maximum","Monthly daily mean","Monthly daily maximum"]
[null,null,null,null,null,null,null,null,null,"A3","Jan",0.49,30,0.49,1.24]
[null,null,null,null,null,null,null,null,null,null,"Feb",0.93,27.63,0.88,1.51]
[null,null,null,null,null,null,null,null,null,null,"Mar",1.41,98.43,0.76,1.65]
[null,null,null,null,null,null,null,null,null,null,"Apr",0.51,109.22,0.5,2.6]
[null,null,null,null,null,null,null,null,null,null,"May",0.64,46.3,0.47,1.3]
[null,null,null,null,null,null,null,null,null,null,"Jun",0.51,32.53,0.51,1.45]
[null,null,null,null,null,null,null,null,null,null,"Jul",1.03,211.31,0.27,1.97]
[null,null,null,null,null,null,null,null,null,null,"Aug",0.81,52.65,0.39,0.64]
[null,null,null,null,null,null,null,null,null,null,"Sep",1.68,134.13,0.78,1.93]
[null,null,null,null,null,null,null,null,null,null,"Oct",4.2300000000000004,33.4,0,0]
[null,null,null,null,null,null,null,null,null,null,"Nov",1.1000000000000001,48.52,1.1100000000000001,2.54]
["Comments :",null,null,null,null,null,null,null,null,null,"Dec",1.08,214.72,0.82,5.82]
[null,null,null,null,null,null,null,null,null,null,"Annual",{"$f":"AVERAGE(L37:L48)","v":1.2016666666666667},{"$f":"MAX(M37:M48)","v":214.72},{"$f":"AVERAGE(N37:N48)","v":0.58166666666666667},{"$f":"MAX(O37:O48)","v":5.82}]
[]
[null,null,null,null,null,null,null,null,null,{"$f":"+A6","v":2021},"mg/Nm3","Monthly 1/2 hourly mean","Monthly 1/2 hourly maximum","Monthly daily mean","Monthly daily maximum"]
[null,null,null,null,null,null,null,null,null,"A4","Jan"]
[null,null,null,null,null,null,null,null,null,null,"Feb"]
[null,null,null,null,null,null,null,null,null,null,"Mar"]
[null,null,null,null,null,null,null,null,null,null,"Apr"]
[null,null,null,null,null,null,null,null,null,null,"May"]
[null,null,null,null,null,null,null,null,null,null,"Jun"]
[null,null,null,null,null,null,null,null,null,null,"Jul"]
[null,null,null,null,null,null,null,null,null,null,"Aug"]
[null,null,null,null,null,null,null,null,null,null,"Sep"]
[null,null,null,null,null,null,null,null,null,null,"Oct"]
[null,null,null,null,null,null,null,null,null,null,"Nov"]
[null,null,null,null,null,null,null,null,null,null,"Dec"]
[null,null,null,null,null,null,null,null,null,null,"Annual",{"$f":"AVERAGE(L52:L63)","v":{"$error":"#DIV/0!"}},{"$f":"MAX(M52:M63)","v":0},{"$f":"AVERAGE(N52:N63)","v":{"$error":"#DIV/0!"}},{"$f":"MAX(O52:O63)","v":0}]
[]
[null,null,null,null,null,null,null,null,null,{"$f":"+A6","v":2021},"mg/Nm3","Monthly 1/2 hourly mean","Monthly 1/2 hourly maximum","Monthly daily mean","Monthly daily maximum"]
[null,null,null,null,null,null,null,null,null,"A5","Jan"]
[null,null,null,null,null,null,null,null,null,null,"Feb"]
[null,null,null,null,null,null,null,null,null,null,"Mar"]
[null,null,null,null,null,null,null,null,null,null,"Apr"]
[null,null,null,null,null,null,null,null,null,null,"May"]
[null,null,null,null,null,null,null,null,null,null,"Jun"]
[null,null,null,null,null,null,null,null,null,null,"Jul"]
[null,null,null,null,null,null,null,null,null,null,"Aug"]
[null,null,null,null,null,null,null,null,null,null,"Sep"]
[null,null,null,null,null,null,null,null,null,null,"Oct"]
[null,null,null,null,null,null,null,null,null,null,"Nov"]
[null,null,null,null,null,null,null,null,null,null,"Dec"]
[null,null,null,null,null,null,null,null,null,null,"Annual",{"$f":"AVERAGE(L67:L78)","v":{"$error":"#DIV/0!"}},{"$f":"MAX(M67:M78)","v":0},{"$f":"AVERAGE(N67:N78)","v":{"$error":"#DIV/0!"}},{"$f":"MAX(O67:O78)","v":0}]

{"sheet":"Particulates","index":18,"n_rows":79,"n_cols":17,"rows_kept":79,"cut":false,"hidden":false,"merged":[[3,16,7,18],[9,16,11,18],[12,16,15,18],[66,9,78,9],[4,1,4,3],[4,4,4,6],[4,9,4,14],[6,9,18,9],[21,9,33,9],[36,9,48,9],[47,0,47,6],[48,0,51,6],[51,9,63,9]]}
[{"$f":"+'Cover Page'!$B$29","v":"Annual Performance Report 2020"},null,null,null,{"$f":"+'Cover Page'!$B$33","v":"Kent Enviropower Limited"}]
[]
["Monitoring of Particulate matter emissions",null,null,"Whole Installation",null,null,"See  Notes in Cell Q3",null,null,{"$f":"+A3","v":"Monitoring of Particulate matter emissions"},null,null,null,"Per Combustion Line",null,null,"Notes:"]
[null,null,null,null,null,null,null,null,null,null,null,null,null,null,null,null,"User to add logic to complete Whole installation, Table A5:G18. From the data in Per Combustion Line, Table J6:O79, subject to No. of lines installed"]
["mg/Nm3","1/2 Hourly Reference Periods",null,null,"Daily Reference Periods"]
[{"$f":"+'Cover Page'!C39","v":2021},"1/2 hourly PM ELV","Monthly 1/2 hourly mean","Highest 1/2 hourly maximum","Daily PM ELV","Monthly daily mean","Highest daily maximum",null,null,{"$f":"+A6","v":2021},"mg/Nm3","Monthly 1/2 hourly mean","Monthly 1/2 hourly maximum","Monthly daily mean","Monthly daily maximum"]
["Jan",30,2,41.9,10,2,6,null,null,"A1","Jan",2.2999999999999998,41.9,2.2999999999999998,3]
["Feb",30,2.46,14,10,2.46,7.7,null,null,null,"Feb",3.1,12.3,3.1,6.5]
["Mar",30,2.36,19.399999999999999,10,2.2999999999999998,7.4,null,null,null,"Mar",2.7,14.2,2.7,6.7,null,"Whole Installation table A5:G18:"]
["Apr",30,3.26,16.2,10,3.3,8.1,null,null,null,"Apr",2.4,16.2,2.5,4.8,null,"Mean: for 1/2 hourly and daily periods calculate mean of values across all operational combustion lines for the month"]
["May",30,2.56,16.100000000000001,10,2.56,8.5,null,null,null,"May",2.5,12.3,2.5,6.5]
["Jun",30,3.76,18.5,10,3.76,9,null,null,null,"Jun",3.4,13.7,3.4,4.5]
["Jul",30,3.6,16.5,10,3.53,7.1,null,null,null,"Jul",3.6,16.5,3.7,6.8,null,"Maximum: for 1/2 hourly and daily periods use the highest value across all operational combustion lines for the month"]
["Aug",30,4,25.5,10,3.9,9.6999999999999993,null,null,null,"Aug",3.3,19.399999999999999,3.3,6.1]
["Sep",30,4.5,20.7,10,4.46,8.4,null,null,null,"Sep",3.1,14,3.1,4.9000000000000004]
["Oct",30,4.53,188.6,10,1.46,7.7,null,null,null,"Oct",4.3,188.6,3.8,7.7]
["Nov",30,2.06,198.6,10,1.83,5.3,null,null,null,"Nov",4.7,15.5,4,5.3]
["Dec",30,0.93,37.799999999999997,10,0.93,4.2,null,null,null,"Dec",1,24.6,1,4.2]
[null,null,null,null,null,null,null,null,null,null,"Annual",{"$f":"AVERAGE(L7:L18)","v":3.0333333333333337},{"$f":"MAX(M7:M18)","v":188.6},{"$f":"AVERAGE(N7:N18)","v":2.9500000000000006},{"$f":"MAX(O7:O18)","v":7.7}]
[]
[null,null,null,null,null,null,null,null,null,{"$f":"+A6","v":2021},"mg/Nm3","Monthly 1/2 hourly mean","Monthly 1/2 hourly maximum","Monthly daily mean","Monthly daily maximum"]
[null,null,null,null,null,null,null,null,null,"A2","Jan",0.4,14.1,0.4,1]
[null,null,null,null,null,null,null,null,null,null,"Feb",0,13.7,0,0.4]
[null,null,null,null,null,null,null,null,null,null,"Mar",1,7.3,1,2.1]
[null,null,null,null,null,null,null,null,null,null,"Apr",4.2,12,4.2,7.4]
[null,null,null,null,null,null,null,null,null,null,"May",1.1000000000000001,6.2,1.1000000000000001,1.4]
[null,null,null,null,null,null,null,null,null,null,"Jun",2.2999999999999998,10.4,2.2999999999999998,4]
[null,null,null,null,null,null,null,null,null,null,"Jul",3,6.2,3,4]
[null,null,null,null,null,null,null,null,null,null,"Aug",2.9,10.6,2.9,3.5]
[null,null,null,null,null,null,null,null,null,null,"Sep",3.2,6.8,3.2,3.8]
[null,null,null,null,null,null,null,null,null,null,"Oct",0.6,3.8,0.6,0.7]
[null,null,null,null,null,null,null,null,null,null,"Nov",0.5,0.7,0.5,0.6]
[null,null,null,null,null,null,null,null,null,null,"Dec",0.8,37.799999999999997,0.8,3.2]
[null,null,null,null,null,null,null,null,null,null,"Annual",{"$f":"AVERAGE(L22:L33)","v":1.666666666666667},{"$f":"MAX(M22:M33)","v":37.799999999999997},{"$f":"AVERAGE(N22:N33)","v":1.666666666666667},{"$f":"MAX(O22:O33)","v":7.4}]
[]
[null,null,null,null,null,null,null,null,null,{"$f":"+A6","v":2021},"mg/Nm3","Monthly 1/2 hourly mean","Monthly 1/2 hourly maximum","Monthly daily mean","Monthly daily maximum"]
[null,null,null,null,null,null,null,null,null,"A3","Jan",3.3,8.6,3.3,6]
[null,null,null,null,null,null,null,null,null,null,"Feb",4.3,14,4.3,7.7]
[null,null,null,null,null,null,null,null,null,null,"Mar",3.4,19.399999999999999,3.2,7.4]
[null,null,null,null,null,null,null,null,null,null,"Apr",3.2,14.3,3.2,8.1]
[null,null,null,null,null,null,null,null,null,null,"May",4.0999999999999996,16.100000000000001,4.0999999999999996,8.5]
[null,null,null,null,null,null,null,null,null,null,"Jun",5.6,18.5,5.6,9]
[null,null,null,null,null,null,null,null,null,null,"Jul",4.2,14.7,3.9,7.1]
[null,null,null,null,null,null,null,null,null,null,"Aug",5.8,25.5,5.5,9.6999999999999993]
[null,null,null,null,null,null,null,null,null,null,"Sep",7.2,20.7,7.1,8.4]
[null,null,null,null,null,null,null,null,null,null,"Oct",8.6999999999999993,11.5,0,0]
[null,null,null,null,null,null,null,null,null,null,"Nov",1,198.6,1,4.7]
["Comments :",null,null,null,null,null,null,null,null,null,"Dec",1,19.399999999999999,1,1.3]
[null,null,null,null,null,null,null,null,null,null,"Annual",{"$f":"AVERAGE(L37:L48)","v":4.3166666666666664},{"$f":"MAX(M37:M48)","v":198.6},{"$f":"AVERAGE(N37:N48)","v":3.5166666666666671},{"$f":"MAX(O37:O48)","v":9.6999999999999993}]
[]
[null,null,null,null,null,null,null,null,null,{"$f":"+A6","v":2021},"mg/Nm3","Monthly 1/2 hourly mean","Monthly 1/2 hourly maximum","Monthly daily mean","Monthly daily maximum"]
[null,null,null,null,null,null,null,null,null,"A4","Jan"]
[null,null,null,null,null,null,null,null,null,null,"Feb"]
[null,null,null,null,null,null,null,null,null,null,"Mar"]
[null,null,null,null,null,null,null,null,null,null,"Apr"]
[null,null,null,null,null,null,null,null,null,null,"May"]
[null,null,null,null,null,null,null,null,null,null,"Jun"]
[null,null,null,null,null,null,null,null,null,null,"Jul"]
[null,null,null,null,null,null,null,null,null,null,"Aug"]
[null,null,null,null,null,null,null,null,null,null,"Sep"]
[null,null,null,null,null,null,null,null,null,null,"Oct"]
[null,null,null,null,null,null,null,null,null,null,"Nov"]
[null,null,null,null,null,null,null,null,null,null,"Dec"]
[null,null,null,null,null,null,null,null,null,null,"Annual",{"$f":"AVERAGE(L52:L63)","v":{"$error":"#DIV/0!"}},{"$f":"MAX(M52:M63)","v":0},{"$f":"AVERAGE(N52:N63)","v":{"$error":"#DIV/0!"}},{"$f":"MAX(O52:O63)","v":0}]
[]
[null,null,null,null,null,null,null,null,null,{"$f":"+A6","v":2021},"mg/Nm3","Monthly 1/2 hourly mean","Monthly 1/2 hourly maximum","Monthly daily mean","Monthly daily maximum"]
[null,null,null,null,null,null,null,null,null,"A5","Jan"]
[null,null,null,null,null,null,null,null,null,null,"Feb"]
[null,null,null,null,null,null,null,null,null,null,"Mar"]
[null,null,null,null,null,null,null,null,null,null,"Apr"]
[null,null,null,null,null,null,null,null,null,null,"May"]
[null,null,null,null,null,null,null,null,null,null,"Jun"]
[null,null,null,null,null,null,null,null,null,null,"Jul"]
[null,null,null,null,null,null,null,null,null,null,"Aug"]
[null,null,null,null,null,null,null,null,null,null,"Sep"]
[null,null,null,null,null,null,null,null,null,null,"Oct"]
[null,null,null,null,null,null,null,null,null,null,"Nov"]
[null,null,null,null,null,null,null,null,null,null,"Dec"]
[null,null,null,null,null,null,null,null,null,null,"Annual",{"$f":"AVERAGE(L67:L78)","v":{"$error":"#DIV/0!"}},{"$f":"MAX(M67:M78)","v":0},{"$f":"AVERAGE(N67:N78)","v":{"$error":"#DIV/0!"}},{"$f":"MAX(O67:O78)","v":0}]

{"sheet":"CO 95% 10 min","index":19,"n_rows":79,"n_cols":19,"rows_kept":79,"cut":false,"hidden":false,"merged":[[3,18,7,20],[9,18,11,20],[12,18,15,20],[66,10,78,10],[4,1,4,4],[4,5,4,7],[4,10,4,16],[6,10,18,10],[21,10,33,10],[36,10,48,10],[47,0,47,7],[48,0,51,7],[51,10,63,10]]}
[{"$f":"+'Cover Page'!$B$29","v":"Annual Performance Report 2020"},null,null,null,{"$f":"+'Cover Page'!$B$33","v":"Kent Enviropower Limited"}]
[]
["Monitoring of Carbon Monoxide (10-minute avg)",null,null,null,"Whole Installation",null,null,"See  Notes in Cell S3",null,{"$f":"+A3","v":"Monitoring of Carbon Monoxide (10-minute avg)"},null,null,null,null,"Per Combustion Line",null,"Notes:",null,"Notes:"]
[null,null,null,null,null,null,null,null,null,null,null,null,null,null,null,null,null,null,"User to add logic to complete Whole installation, Table A5:H18. From the data in Per Combustion Line, Table K6:Q79, subject to No. of lines installed"]
["mg/Nm3","10-minute Reference Periods",null,null,null,"Daily Reference Periods"]
[{"$f":"+'Cover Page'!C39","v":2021},"95%ile 10-min avg CO ELV","95%ile 10-min avg maximum","Monthly CO 10-min avg mean","10-min avg maximum","Daily CO ELV","Monthly daily mean","Highest daily maximum",null,null,{"$f":"+A6","v":2021},"mg/Nm3","95%ile 10-min avg maximum","Monthly CO 10-min avg mean","10-min avg maximum","Monthly daily mean","Monthly daily maximum"]
["Jan",150,null,3.66,2800,50,3.33,35,null,null,"A1","Jan",null,4,495,3,10]
["Feb",{"$f":"+B7","v":150},null,5,1520,{"$f":"+F7","v":50},5,16,null,null,null,"Feb",null,4,1049,4,11]
["Mar",{"$f":"+B8","v":150},null,7,2652,{"$f":"+F8","v":50},6,23,null,null,null,"Mar",null,6,2652,5,19,null,"Whole Installation table A5:H18:"]
["Apr",150,null,5.66,858,50,5.33,20,null,null,null,"Apr",null,5,858,5,13,null,"Mean: for 10-min and daily periods use average of all operational combustion lines."]
["May",150,null,7.33,1269,50,6.66,22,null,null,null,"May",null,6,1269,6,15]
["Jun",150,null,7,1488,50,7,26,null,null,null,"Jun",null,11,1056,11,25]
["Jul",150,null,9,3725,50,7.66,27,null,null,null,"Jul",null,9,1565,8,27,null,"Maximum: for 10-min and daily periods use the highest of all operational combustion lines in any month."]
["Aug",150,null,10,1357,50,8.33,30,null,null,null,"Aug",null,7,930,7,18]
["Sep",150,null,11.33,1560,50,8,19,null,null,null,"Sep",null,8,1049,8,17]
["Oct",150,null,26.33,3736,50,5.33,21,null,null,null,"Oct",null,16,3736,9,21]
["Nov",150,null,6,549,50,5.33,25,null,null,null,"Nov",null,5,267,3,4]
["Dec",150,null,7.33,1574,50,5.66,19,null,null,null,"Dec",null,8,442,7,17]
[null,null,null,null,null,null,null,null,null,null,null,"Annual",{"$f":"AVERAGE(M7:M18)","v":{"$error":"#DIV/0!"}},null,{"$f":"MAX(O7:O18)","v":3736},{"$f":"AVERAGE(P7:P18)","v":6.333333333333333},{"$f":"MAX(Q7:Q18)","v":27}]
[]
[null,null,null,null,null,null,null,null,null,null,{"$f":"+A6","v":2021},"mg/Nm3","95%ile 10-min avg maximum","Monthly CO 10-min avg mean","10-min avg maximum","Monthly daily mean","Monthly daily maximum"]
[null,null,null,null,null,null,null,null,null,null,"A2","Jan",null,4,2800,4,35]
[null,null,null,null,null,null,null,null,null,null,null,"Feb",null,4,579,4,15]
[null,null,null,null,null,null,null,null,null,null,null,"Mar",null,6,1717,6,19]
[null,null,null,null,null,null,null,null,null,null,null,"Apr",null,7,726,6,20]
[null,null,null,null,null,null,null,null,null,null,null,"May",null,10,769,9,22]
[null,null,null,null,null,null,null,null,null,null,null,"Jun",null,4,695,4,11]
[null,null,null,null,null,null,null,null,null,null,null,"Jul",null,7,1840,6,20]
[null,null,null,null,null,null,null,null,null,null,null,"Aug",null,15,1224,12,30]
[null,null,null,null,null,null,null,null,null,null,null,"Sep",null,8,749,7,14]
[null,null,null,null,null,null,null,null,null,null,null,"Oct",null,22,3648,7,13]
[null,null,null,null,null,null,null,null,null,null,null,"Nov",null,7,549,7,25]
[null,null,null,null,null,null,null,null,null,null,null,"Dec",null,6,1574,5,18]
[null,null,null,null,null,null,null,null,null,null,null,"Annual",{"$f":"AVERAGE(M22:M33)","v":{"$error":"#DIV/0!"}},null,{"$f":"MAX(O22:O33)","v":3648},{"$f":"AVERAGE(P22:P33)","v":6.416666666666667},{"$f":"MAX(Q22:Q33)","v":35}]
[]
[null,null,null,null,null,null,null,null,null,null,{"$f":"+A6","v":2021},"mg/Nm3","95%ile 10-min avg maximum","Monthly CO 10-min avg mean","10-min avg maximum","Monthly daily mean","Monthly daily maximum"]
[null,null,null,null,null,null,null,null,null,null,"A3","Jan",null,3,1605,3,13]
[null,null,null,null,null,null,null,null,null,null,null,"Feb",null,7,1520,7,16]
[null,null,null,null,null,null,null,null,null,null,null,"Mar",null,9,1505,7,23]
[null,null,null,null,null,null,null,null,null,null,null,"Apr",null,5,380,5,16]
[null,null,null,null,null,null,null,null,null,null,null,"May",null,6,779,5,12]
[null,null,null,null,null,null,null,null,null,null,null,"Jun",null,6,1488,6,26]
[null,null,null,null,null,null,null,null,null,null,null,"Jul",null,11,3725,9,19]
[null,null,null,null,null,null,null,null,null,null,null,"Aug",null,9,1357,6,15]
[null,null,null,null,null,null,null,null,null,null,null,"Sep",null,18,1560,9,19]
[null,null,null,null,null,null,null,null,null,null,null,"Oct",null,41,542,0,0]
[null,null,null,null,null,null,null,null,null,null,null,"Nov",null,6,366,6,12]
["Comments :",null,null,null,null,null,null,null,null,null,null,"Dec",null,8,698,5,19]
["Environment Agency explanatory note: The 10-minute average ELV is based on the “95th percentile”. In this case this means that 95% of the 10 minute averages in the relevant 24-hour period (i.e. 137) must be below 150 mg/Nm3, and 5% (i.e. 7) are allowed to be any value above 150 mg/Nm3. Whilst we expect operators to minimise CO emissions at all times, it is perfectly acceptable for the value of the maximum 10-minute average to be above 150 mg/Nm3, provided the 95th percentile ELV has been met for that period. ",null,null,null,null,null,null,null,null,null,null,"Annual",{"$f":"AVERAGE(M37:M48)","v":{"$error":"#DIV/0!"}},null,{"$f":"MAX(O37:O48)","v":3725},{"$f":"AVERAGE(P37:P48)","v":5.666666666666667},{"$f":"MAX(Q37:Q48)","v":26}]
[]
[null,null,null,null,null,null,null,null,null,null,{"$f":"+A6","v":2021},"mg/Nm3","95%ile 10-min avg maximum","Monthly CO 10-min avg mean","10-min avg maximum","Monthly daily mean","Monthly daily maximum"]
[null,null,null,null,null,null,null,null,null,null,"A4","Jan"]
[null,null,null,null,null,null,null,null,null,null,null,"Feb"]
[null,null,null,null,null,null,null,null,null,null,null,"Mar"]
[null,null,null,null,null,null,null,null,null,null,null,"Apr"]
[null,null,null,null,null,null,null,null,null,null,null,"May"]
[null,null,null,null,null,null,null,null,null,null,null,"Jun"]
[null,null,null,null,null,null,null,null,null,null,null,"Jul"]
[null,null,null,null,null,null,null,null,null,null,null,"Aug"]
[null,null,null,null,null,null,null,null,null,null,null,"Sep"]
[null,null,null,null,null,null,null,null,null,null,null,"Oct"]
[null,null,null,null,null,null,null,null,null,null,null,"Nov"]
[null,null,null,null,null,null,null,null,null,null,null,"Dec"]
[null,null,null,null,null,null,null,null,null,null,null,"Annual",{"$f":"AVERAGE(M52:M63)","v":{"$error":"#DIV/0!"}},null,{"$f":"MAX(O52:O63)","v":0},{"$f":"AVERAGE(P52:P63)","v":{"$error":"#DIV/0!"}},{"$f":"MAX(Q52:Q63)","v":0}]
[]
[null,null,null,null,null,null,null,null,null,null,{"$f":"+A6","v":2021},"mg/Nm3","95%ile 10-min avg maximum","Monthly CO 10-min avg mean","10-min avg maximum","Monthly daily mean","Monthly daily maximum"]
[null,null,null,null,null,null,null,null,null,null,"A5","Jan"]
[null,null,null,null,null,null,null,null,null,null,null,"Feb"]
[null,null,null,null,null,null,null,null,null,null,null,"Mar"]
[null,null,null,null,null,null,null,null,null,null,null,"Apr"]
[null,null,null,null,null,null,null,null,null,null,null,"May"]
[null,null,null,null,null,null,null,null,null,null,null,"Jun"]
[null,null,null,null,null,null,null,null,null,null,null,"Jul"]
[null,null,null,null,null,null,null,null,null,null,null,"Aug"]
[null,null,null,null,null,null,null,null,null,null,null,"Sep"]
[null,null,null,null,null,null,null,null,null,null,null,"Oct"]
[null,null,null,null,null,null,null,null,null,null,null,"Nov"]
[null,null,null,null,null,null,null,null,null,null,null,"Dec"]
[null,null,null,null,null,null,null,null,null,null,null,"Annual",{"$f":"AVERAGE(M67:M78)","v":{"$error":"#DIV/0!"}},null,{"$f":"MAX(O67:O78)","v":0},{"$f":"AVERAGE(P67:P78)","v":{"$error":"#DIV/0!"}},{"$f":"MAX(Q67:Q78)","v":0}]

{"sheet":"NH3","index":20,"n_rows":79,"n_cols":17,"rows_kept":79,"cut":false,"hidden":false,"merged":[[3,16,7,18],[9,16,11,18],[12,16,15,18],[66,9,78,9],[4,1,4,3],[4,4,4,6],[4,9,4,14],[6,9,18,9],[21,9,33,9],[36,9,48,9],[47,0,47,6],[48,0,51,6],[51,9,63,9]]}
[{"$f":"+'Cover Page'!$B$29","v":"Annual Performance Report 2020"},null,null,null,{"$f":"+'Cover Page'!$B$33","v":"Kent Enviropower Limited"}]
[]
["Monitoring of Ammonia emissions ",null,null,"Whole Installation",null,null,"See  Notes in Cell Q3",null,null,{"$f":"+A3","v":"Monitoring of Ammonia emissions "},null,null,null,"Per Combustion Line",null,null,"Notes:"]
[null,null,null,null,null,null,null,null,null,null,null,null,null,null,null,null,"User to add logic to complete Whole installation, Table A5:G18. From the data in Per Combustion Line, Table J6:O79, subject to No. of lines installed"]
["mg/Nm3","1/2 Hourly Reference Periods",null,null,"Daily Reference Periods"]
[{"$f":"+'Cover Page'!C39","v":2021},"1/2 hourly NH3 ELV","Monthly 1/2 hourly mean","Highest 1/2 hourly maximum","Daily NH3 ELV","Monthly daily mean","Highest daily maximum",null,null,{"$f":"+A6","v":2021},"mg/Nm3","Monthly 1/2 hourly mean","Monthly 1/2 hourly maximum","Monthly daily mean","Monthly daily maximum"]
["Jan",0,0,0,10,0.37,0.73,null,null,"A1","Jan",0,0,0.47,0.73]
["Feb",{"$f":"+B7","v":0},0,0,{"$f":"+E7","v":10},0.42,0.78,null,null,null,"Feb",0,0,0.53,0.71]
["Mar",{"$f":"+B8","v":0},0,0,{"$f":"+E8","v":10},0.49,1.1599999999999999,null,null,null,"Mar",0,0,0.74,1.1599999999999999,null,"Whole Installation table A5:G18:"]
["Apr",0,0,0,10,0.52,1.26,null,null,null,"Apr",0,0,0.64,1.26,null,"Mean: for 1/2 hourly and daily periods calculate mean of values across all operational combustion lines for the month"]
["May",0,0,0,10,0.43,0.77,null,null,null,"May",0,0,0.53,0.71]
["Jun",0,0,0,10,0.5,1.23,null,null,null,"Jun",0,0,0.74,1.23]
["Jul",0,0,0,10,0.48,0.96,null,null,null,"Jul",0,0,0.63,0.96,null,"Maximum: for 1/2 hourly and daily periods use the highest value across all operational combustion lines for the month"]
["Aug",0,0,0,10,0.45,0.89,null,null,null,"Aug",0,0,0.61,0.89]
["Sep",0,0,0,10,0.54,1.53,null,null,null,"Sep",0,0,0.76,1.53]
["Oct",0,0,0,10,0.38,1.37,null,null,null,"Oct",0,0,0.94,1.37]
["Nov",0,0,0,10,0.55000000000000004,0.94,null,null,null,"Nov",0,0,0.8,0.94]
["Dec",0,0,0,10,0.62,1.61,null,null,null,"Dec",0,0,0.96,1.61]
[null,null,null,null,null,null,null,null,null,null,"Annual",{"$f":"AVERAGE(L7:L18)","v":0},{"$f":"MAX(M7:M18)","v":0},{"$f":"AVERAGE(N7:N18)","v":0.6958333333333333},{"$f":"MAX(O7:O18)","v":1.61}]
[]
[null,null,null,null,null,null,null,null,null,{"$f":"+A6","v":2021},"mg/Nm3","Monthly 1/2 hourly mean","Monthly 1/2 hourly maximum","Monthly daily mean","Monthly daily maximum"]
[null,null,null,null,null,null,null,null,null,"A2","Jan",0,0,0.17,0.2]
[null,null,null,null,null,null,null,null,null,null,"Feb",0,0,0.18,0.24]
[null,null,null,null,null,null,null,null,null,null,"Mar",0,0,0.18,0.28000000000000003]
[null,null,null,null,null,null,null,null,null,null,"Apr",0,0,0.23,0.48]
[null,null,null,null,null,null,null,null,null,null,"May",0,0,0.24,0.44]
[null,null,null,null,null,null,null,null,null,null,"Jun",0,0,0.2,0.36]
[null,null,null,null,null,null,null,null,null,null,"Jul",0,0,0.2,0.36]
[null,null,null,null,null,null,null,null,null,null,"Aug",0,0,0.26,0.51]
[null,null,null,null,null,null,null,null,null,null,"Sep",0,0,0.2,0.27]
[null,null,null,null,null,null,null,null,null,null,"Oct",0,0,0.23,0.28000000000000003]
[null,null,null,null,null,null,null,null,null,null,"Nov",0,0,0.23,0.34]
[null,null,null,null,null,null,null,null,null,null,"Dec",0,0,0.22,0.32]
[null,null,null,null,null,null,null,null,null,null,"Annual",{"$f":"AVERAGE(L22:L33)","v":0},{"$f":"MAX(M22:M33)","v":0},{"$f":"AVERAGE(N22:N33)","v":0.21166666666666667},{"$f":"MAX(O22:O33)","v":0.51}]
[]
[null,null,null,null,null,null,null,null,null,{"$f":"+A6","v":2021},"mg/Nm3","Monthly 1/2 hourly mean","Monthly 1/2 hourly maximum","Monthly daily mean","Monthly daily maximum"]
[null,null,null,null,null,null,null,null,null,"A3","Jan",0,0,0.48,0.65]
[null,null,null,null,null,null,null,null,null,null,"Feb",0,0,0.55000000000000004,0.78]
[null,null,null,null,null,null,null,null,null,null,"Mar",0,0,0.56000000000000005,0.76]
[null,null,null,null,null,null,null,null,null,null,"Apr",0,0,0.69,0.96]
[null,null,null,null,null,null,null,null,null,null,"May",0,0,0.53,0.77]
[null,null,null,null,null,null,null,null,null,null,"Jun",0,0,0.57999999999999996,0.88]
[null,null,null,null,null,null,null,null,null,null,"Jul",0,0,0.62,0.93]
[null,null,null,null,null,null,null,null,null,null,"Aug",0,0,0.49,0.57999999999999996]
[null,null,null,null,null,null,null,null,null,null,"Sep",0,0,0.68,0.96]
[null,null,null,null,null,null,null,null,null,null,"Oct",0,0,0,0]
[null,null,null,null,null,null,null,null,null,null,"Nov",0,0,0.63,0.85]
["Comments :",null,null,null,null,null,null,null,null,null,"Dec",0,0,0.69,0.96]
["An indicated ELV value of zero in the table above means that no ammonia limit is set in the permit.  ",null,null,null,null,null,null,null,null,null,"Annual",{"$f":"AVERAGE(L37:L48)","v":0},{"$f":"MAX(M37:M48)","v":0},{"$f":"AVERAGE(N37:N48)","v":0.54166666666666663},{"$f":"MAX(O37:O48)","v":0.96}]
[]
[null,null,null,null,null,null,null,null,null,{"$f":"+A6","v":2021},"mg/Nm3","Monthly 1/2 hourly mean","Monthly 1/2 hourly maximum","Monthly daily mean","Monthly daily maximum"]
[null,null,null,null,null,null,null,null,null,"A4","Jan"]
[null,null,null,null,null,null,null,null,null,null,"Feb"]
[null,null,null,null,null,null,null,null,null,null,"Mar"]
[null,null,null,null,null,null,null,null,null,null,"Apr"]
[null,null,null,null,null,null,null,null,null,null,"May"]
[null,null,null,null,null,null,null,null,null,null,"Jun"]
[null,null,null,null,null,null,null,null,null,null,"Jul"]
[null,null,null,null,null,null,null,null,null,null,"Aug"]
[null,null,null,null,null,null,null,null,null,null,"Sep"]
[null,null,null,null,null,null,null,null,null,null,"Oct"]
[null,null,null,null,null,null,null,null,null,null,"Nov"]
[null,null,null,null,null,null,null,null,null,null,"Dec"]
[null,null,null,null,null,null,null,null,null,null,"Annual",{"$f":"AVERAGE(L52:L63)","v":{"$error":"#DIV/0!"}},{"$f":"MAX(M52:M63)","v":0},{"$f":"AVERAGE(N52:N63)","v":{"$error":"#DIV/0!"}},{"$f":"MAX(O52:O63)","v":0}]
[]
[null,null,null,null,null,null,null,null,null,{"$f":"+A6","v":2021},"mg/Nm3","Monthly 1/2 hourly mean","Monthly 1/2 hourly maximum","Monthly daily mean","Monthly daily maximum"]
[null,null,null,null,null,null,null,null,null,"A5","Jan"]
[null,null,null,null,null,null,null,null,null,null,"Feb"]
[null,null,null,null,null,null,null,null,null,null,"Mar"]
[null,null,null,null,null,null,null,null,null,null,"Apr"]
[null,null,null,null,null,null,null,null,null,null,"May"]
[null,null,null,null,null,null,null,null,null,null,"Jun"]
[null,null,null,null,null,null,null,null,null,null,"Jul"]
[null,null,null,null,null,null,null,null,null,null,"Aug"]
[null,null,null,null,null,null,null,null,null,null,"Sep"]
[null,null,null,null,null,null,null,null,null,null,"Oct"]
[null,null,null,null,null,null,null,null,null,null,"Nov"]
[null,null,null,null,null,null,null,null,null,null,"Dec"]
[null,null,null,null,null,null,null,null,null,null,"Annual",{"$f":"AVERAGE(L67:L78)","v":{"$error":"#DIV/0!"}},{"$f":"MAX(M67:M78)","v":0},{"$f":"AVERAGE(N67:N78)","v":{"$error":"#DIV/0!"}},{"$f":"MAX(O67:O78)","v":0}]

{"sheet":"CO 0.5hourly","index":21,"n_rows":79,"n_cols":17,"rows_kept":79,"cut":false,"hidden":false,"merged":[[3,16,7,18],[9,16,11,18],[12,16,15,18],[66,9,78,9],[4,1,4,3],[4,4,4,6],[4,9,4,14],[6,9,18,9],[21,9,33,9],[36,9,48,9],[47,0,47,6],[48,0,51,6],[51,9,63,9]]}
[{"$f":"+'Cover Page'!$B$29","v":"Annual Performance Report 2020"},null,null,null,{"$f":"+'Cover Page'!$B$33","v":"Kent Enviropower Limited"}]
[]
["Monitoring of Carbon Monoxide (half hourly)",null,null,"Whole Installation",null,null,"See  Notes in Cell Q3",null,null,{"$f":"+A3","v":"Monitoring of Carbon Monoxide (half hourly)"},null,null,null,"Per Combustion Line",null,null,"Notes:"]
[null,null,null,null,null,null,null,null,null,null,null,null,null,null,null,null,"User to add logic to complete Whole installation, Table A5:G18. From the data in Per Combustion Line, Table J6:O79, subject to No. of lines installed"]
["mg/Nm3","1/2 Hourly Reference Periods",null,null,"Daily Reference Periods"]
[{"$f":"+'Cover Page'!C39","v":2021},"1/2 hourly CO ELV","Monthly 1/2 hourly mean","Highest 1/2 hourly maximum","Daily CO ELV","Monthly daily mean","Highest daily maximum",null,null,{"$f":"+A6","v":2021},"mg/Nm3","Monthly 1/2 hourly mean","Monthly 1/2 hourly maximum","Monthly daily mean","Monthly daily maximum"]
["Jan",100,"N/A","N/A",50,"N/A","N/A",null,null,"A1","Jan"]
["Feb",{"$f":"+B7","v":100},"N/A","N/A",{"$f":"+E7","v":50},"N/A","N/A",null,null,null,"Feb"]
["Mar",{"$f":"+B8","v":100},"N/A","N/A",{"$f":"+E8","v":50},"N/A","N/A",null,null,null,"Mar",null,null,null,null,null,"Whole Installation table A5:G18:"]
["Apr",100,"N/A","N/A",50,"N/A","N/A",null,null,null,"Apr",null,null,null,null,null,"Mean: for 1/2 hourly and daily periods calculate mean of values across all operational combustion lines for the month"]
["May",100,"N/A","N/A",50,"N/A","N/A",null,null,null,"May"]
["Jun",100,"N/A","N/A",50,"N/A","N/A",null,null,null,"Jun"]
["Jul",100,"N/A","N/A",50,"N/A","N/A",null,null,null,"Jul",null,null,null,null,null,"Maximum: for 1/2 hourly and daily periods use the highest value across all operational combustion lines for the month"]
["Aug",100,"N/A","N/A",50,"N/A","N/A",null,null,null,"Aug"]
["Sep",100,"N/A","N/A",50,"N/A","N/A",null,null,null,"Sep"]
["Oct",100,"N/A","N/A",50,"N/A","N/A",null,null,null,"Oct"]
["Nov",100,"N/A","N/A",50,"N/A","N/A",null,null,null,"Nov"]
["Dec",100,"N/A","N/A",50,"N/A","N/A",null,null,null,"Dec"]
[null,null,null,null,null,null,null,null,null,null,"Annual",{"$f":"AVERAGE(L7:L18)","v":{"$error":"#DIV/0!"}},{"$f":"MAX(M7:M18)","v":0},{"$f":"AVERAGE(N7:N18)","v":{"$error":"#DIV/0!"}},{"$f":"MAX(O7:O18)","v":0}]
[]
[null,null,null,null,null,null,null,null,null,{"$f":"+A6","v":2021},"mg/Nm3","Monthly 1/2 hourly mean","Monthly 1/2 hourly maximum","Monthly daily mean","Monthly daily maximum"]
[null,null,null,null,null,null,null,null,null,"A2","Jan"]
[null,null,null,null,null,null,null,null,null,null,"Feb"]
[null,null,null,null,null,null,null,null,null,null,"Mar"]
[null,null,null,null,null,null,null,null,null,null,"Apr"]
[null,null,null,null,null,null,null,null,null,null,"May"]
[null,null,null,null,null,null,null,null,null,null,"Jun"]
[null,null,null,null,null,null,null,null,null,null,"Jul"]
[null,null,null,null,null,null,null,null,null,null,"Aug"]
[null,null,null,null,null,null,null,null,null,null,"Sep"]
[null,null,null,null,null,null,null,null,null,null,"Oct"]
[null,null,null,null,null,null,null,null,null,null,"Nov"]
[null,null,null,null,null,null,null,null,null,null,"Dec"]
[null,null,null,null,null,null,null,null,null,null,"Annual",{"$f":"AVERAGE(L22:L33)","v":{"$error":"#DIV/0!"}},{"$f":"MAX(M22:M33)","v":0},{"$f":"AVERAGE(N22:N33)","v":{"$error":"#DIV/0!"}},{"$f":"MAX(O22:O33)","v":0}]
[]
[null,null,null,null,null,null,null,null,null,{"$f":"+A6","v":2021},"mg/Nm3","Monthly 1/2 hourly mean","Monthly 1/2 hourly maximum","Monthly daily mean","Monthly daily maximum"]
[null,null,null,null,null,null,null,null,null,"A3","Jan"]
[null,null,null,null,null,null,null,null,null,null,"Feb"]
[null,null,null,null,null,null,null,null,null,null,"Mar"]
[null,null,null,null,null,null,null,null,null,null,"Apr"]
[null,null,null,null,null,null,null,null,null,null,"May"]
[null,null,null,null,null,null,null,null,null,null,"Jun"]
[null,null,null,null,null,null,null,null,null,null,"Jul"]
[null,null,null,null,null,null,null,null,null,null,"Aug"]
[null,null,null,null,null,null,null,null,null,null,"Sep"]
[null,null,null,null,null,null,null,null,null,null,"Oct"]
[null,null,null,null,null,null,null,null,null,null,"Nov"]
["Comments :",null,null,null,null,null,null,null,null,null,"Dec"]
[null,null,null,null,null,null,null,null,null,null,"Annual",{"$f":"AVERAGE(L37:L48)","v":{"$error":"#DIV/0!"}},{"$f":"MAX(M37:M48)","v":0},{"$f":"AVERAGE(N37:N48)","v":{"$error":"#DIV/0!"}},{"$f":"MAX(O37:O48)","v":0}]
[]
[null,null,null,null,null,null,null,null,null,{"$f":"+A6","v":2021},"mg/Nm3","Monthly 1/2 hourly mean","Monthly 1/2 hourly maximum","Monthly daily mean","Monthly daily maximum"]
[null,null,null,null,null,null,null,null,null,"A4","Jan"]
[null,null,null,null,null,null,null,null,null,null,"Feb"]
[null,null,null,null,null,null,null,null,null,null,"Mar"]
[null,null,null,null,null,null,null,null,null,null,"Apr"]
[null,null,null,null,null,null,null,null,null,null,"May"]
[null,null,null,null,null,null,null,null,null,null,"Jun"]
[null,null,null,null,null,null,null,null,null,null,"Jul"]
[null,null,null,null,null,null,null,null,null,null,"Aug"]
[null,null,null,null,null,null,null,null,null,null,"Sep"]
[null,null,null,null,null,null,null,null,null,null,"Oct"]
[null,null,null,null,null,null,null,null,null,null,"Nov"]
[null,null,null,null,null,null,null,null,null,null,"Dec"]
[null,null,null,null,null,null,null,null,null,null,"Annual",{"$f":"AVERAGE(L52:L63)","v":{"$error":"#DIV/0!"}},{"$f":"MAX(M52:M63)","v":0},{"$f":"AVERAGE(N52:N63)","v":{"$error":"#DIV/0!"}},{"$f":"MAX(O52:O63)","v":0}]
[]
[null,null,null,null,null,null,null,null,null,{"$f":"+A6","v":2021},"mg/Nm3","Monthly 1/2 hourly mean","Monthly 1/2 hourly maximum","Monthly daily mean","Monthly daily maximum"]
[null,null,null,null,null,null,null,null,null,"A5","Jan"]
[null,null,null,null,null,null,null,null,null,null,"Feb"]
[null,null,null,null,null,null,null,null,null,null,"Mar"]
[null,null,null,null,null,null,null,null,null,null,"Apr"]
[null,null,null,null,null,null,null,null,null,null,"May"]
[null,null,null,null,null,null,null,null,null,null,"Jun"]
[null,null,null,null,null,null,null,null,null,null,"Jul"]
[null,null,null,null,null,null,null,null,null,null,"Aug"]
[null,null,null,null,null,null,null,null,null,null,"Sep"]
[null,null,null,null,null,null,null,null,null,null,"Oct"]
[null,null,null,null,null,null,null,null,null,null,"Nov"]
[null,null,null,null,null,null,null,null,null,null,"Dec"]
[null,null,null,null,null,null,null,null,null,null,"Annual",{"$f":"AVERAGE(L67:L78)","v":{"$error":"#DIV/0!"}},{"$f":"MAX(M67:M78)","v":0},{"$f":"AVERAGE(N67:N78)","v":{"$error":"#DIV/0!"}},{"$f":"MAX(O67:O78)","v":0}]